Workbook

Sheet Refund Invoice
A3: Refund Invoice
A4: 2024-12-10
A14: Description | B14: Qty | C14: Price | D14: Amount
A17: DCA | B17: 16 | C17: =IFERROR(VLOOKUP(A17,'Services-Produits'!$A$1:$B$2000,2,FALSE),"") -> 57 | D17: =IFERROR(B17*C17,"") -> 912
A18: Artesunat | B18: 8 | C18: =IFERROR(VLOOKUP(A18,'Services-Produits'!$A$1:$B$2000,2,FALSE),"") -> 67.2 | D18: =IFERROR(B18*C18,"") -> 537.6
A19: Curcumin 75 mg | B19: 9 | C19: =IFERROR(VLOOKUP(A19,'Services-Produits'!$A$1:$B$2000,2,FALSE),"") -> 116.22 | D19: 1045.98
A20: Cerebrolysin 10 ml | B20: 3 | C20: =IFERROR(VLOOKUP(A20,'Services-Produits'!$A$1:$B$2000,2,FALSE),"") -> 99.6 | D20: 298.8
A21: Antioxidant Mix | B21: 1 | C21: =IFERROR(VLOOKUP(A21,'Services-Produits'!$A$1:$B$2000,2,FALSE),"") -> 410 | D21: 410
A22: Gedächtnis Infusion | B22: 2 | C22: =IFERROR(VLOOKUP(A22,'Services-Produits'!$A$1:$B$2000,2,FALSE),"") -> 378 | D22: 756
C24: =IFERROR(VLOOKUP(A24,'Services-Produits'!$A$1:$B$2000,2,FALSE),"") -> 
C25: =IFERROR(VLOOKUP(A25,'Services-Produits'!$A$1:$B$2000,2,FALSE),"") -> 
C26: =IFERROR(VLOOKUP(A26,'Services-Produits'!$A$1:$B$2000,2,FALSE),"") -> 
C27: =IFERROR(VLOOKUP(A27,'Services-Produits'!$A$1:$B$2000,2,FALSE),"") -> 
C28: =IFERROR(VLOOKUP(A28,'Services-Produits'!$A$1:$B$2000,2,FALSE),"") -> 
C29: =IFERROR(VLOOKUP(A29,'Services-Produits'!$A$1:$B$2000,2,FALSE),"") -> 
C30: =IFERROR(VLOOKUP(A30,'Services-Produits'!$A$1:$B$2000,2,FALSE),"") -> 
C31: =IFERROR(VLOOKUP(A31,'Services-Produits'!$A$1:$B$2000,2,FALSE),"") -> 
C32: =IFERROR(VLOOKUP(A32,'Services-Produits'!$A$1:$B$2000,2,FALSE),"") -> 
C33: =IFERROR(VLOOKUP(A33,'Services-Produits'!$A$1:$B$2000,2,FALSE),"") -> 
C34: =IFERROR(VLOOKUP(A34,'Services-Produits'!$A$1:$B$2000,2,FALSE),"") -> 
C35: =IFERROR(VLOOKUP(A35,'Services-Produits'!$A$1:$B$2000,2,FALSE),"") -> 
C36: =IFERROR(VLOOKUP(A36,'Services-Produits'!$A$1:$B$2000,2,FALSE),"") -> 
C37: =IFERROR(VLOOKUP(A37,'Services-Produits'!$A$1:$B$2000,2,FALSE),"") -> 
A38: Total refund in CHF | D38: =SUM(D17:D37) -> 3960.38
A40: Thank you very much for your trust!

Sheet Ahnar Magenda1
A3: Invoice: 55H-02411-GM19
A4: 18.11.2024
A10: Mr. Ahnar Magenda
A11: Jakarta
A12: Indonesia
A14: Description | B14: Qty | C14: Price | D14: Amount
A16: Dr. Markus Paetz - Hirschlanden Hospital | C16: 627.4 | D16: 627.4
A17: Courrier Bern - Zürich | C17: 280 | D17: 280
A18: Medications | C18: =IFERROR(VLOOKUP(A18,'Services-Produits'!$A$1:$B$2000,2,FALSE),"") ->  | D18: =IFERROR(B18*C18,"") -> 
A19: Xanax 2 mg | B19: 7 | C19: =IFERROR(VLOOKUP(A19,'Services-Produits'!$A$1:$B$2000,2,FALSE),"") -> 42.75 | D19: 299.25
A20: Prostagutt Uno | B20: 1 | C20: =IFERROR(VLOOKUP(A20,'Services-Produits'!$A$1:$B$2000,2,FALSE),"") -> 49.9 | D20: 49.9
A21: Lian Therapeut | C21: =IFERROR(VLOOKUP(A21,'Services-Produits'!$A$1:$B$2000,2,FALSE),"") -> 
A22: Supplement | B22: 1 | C22: =IFERROR(VLOOKUP(A22,'Services-Produits'!$A$1:$B$2000,2,FALSE),"") -> 162.72 | D22: 162.72
A23: Complemedis | B23: 1 | C23: =IFERROR(VLOOKUP(A23,'Services-Produits'!$A$1:$B$2000,2,FALSE),"") -> 74.2 | D23: 74.2
C24: =IFERROR(VLOOKUP(A24,'Services-Produits'!$A$1:$B$2000,2,FALSE),"") -> 
C25: =IFERROR(VLOOKUP(A25,'Services-Produits'!$A$1:$B$2000,2,FALSE),"") -> 
C26: =IFERROR(VLOOKUP(A26,'Services-Produits'!$A$1:$B$2000,2,FALSE),"") -> 
C27: =IFERROR(VLOOKUP(A27,'Services-Produits'!$A$1:$B$2000,2,FALSE),"") -> 
C28: =IFERROR(VLOOKUP(A28,'Services-Produits'!$A$1:$B$2000,2,FALSE),"") -> 
C29: =IFERROR(VLOOKUP(A29,'Services-Produits'!$A$1:$B$2000,2,FALSE),"") -> 
C30: =IFERROR(VLOOKUP(A30,'Services-Produits'!$A$1:$B$2000,2,FALSE),"") -> 
C31: =IFERROR(VLOOKUP(A31,'Services-Produits'!$A$1:$B$2000,2,FALSE),"") -> 
C32: =IFERROR(VLOOKUP(A32,'Services-Produits'!$A$1:$B$2000,2,FALSE),"") -> 
C33: =IFERROR(VLOOKUP(A33,'Services-Produits'!$A$1:$B$2000,2,FALSE),"") -> 
C34: =IFERROR(VLOOKUP(A34,'Services-Produits'!$A$1:$B$2000,2,FALSE),"") -> 
C36: =IFERROR(VLOOKUP(A36,'Services-Produits'!$A$1:$B$2000,2,FALSE),"") -> 
C38: =IFERROR(VLOOKUP(A38,'Services-Produits'!$A$1:$B$2000,2,FALSE),"") -> 
A40: Total in CHF | D40: =SUM(D16:D39) -> 1493.47
A42: Thank you very much for your trust!

Sheet Mrs. Yenni Rista
A3: Invoice: 55H-02305-GM01
A4: 24.05.2023
A10: Mrs. Yenni Rista
A11: Jakarta
A12: Indonesia
A14: Description | B14: Qty | C14: Price | D14: Amount
A15: Patient: Yenni Rista, F, 18.07.1958
A17: Gut Microbiome 4 transplants | B17: 1 | C17: =IFERROR(VLOOKUP(A17,'Services-Produits'!$A$1:$B$2000,2,FALSE),"") -> 28799 | D17: =IFERROR(B17*C17,"") -> 28799
A18: Mitochondrien Infusion | B18: 2 | C18: 195.27 | D18: =IFERROR(B18*C18,"") -> 390.54
C19: =IFERROR(VLOOKUP(A19,'Services-Produits'!$A$1:$B$2000,2,FALSE),"") -> 
C20: =IFERROR(VLOOKUP(A20,'Services-Produits'!$A$1:$B$2000,2,FALSE),"") -> 
C21: =IFERROR(VLOOKUP(A21,'Services-Produits'!$A$1:$B$2000,2,FALSE),"") -> 
C22: =IFERROR(VLOOKUP(A22,'Services-Produits'!$A$1:$B$2000,2,FALSE),"") -> 
C23: =IFERROR(VLOOKUP(A23,'Services-Produits'!$A$1:$B$2000,2,FALSE),"") -> 
C24: =IFERROR(VLOOKUP(A24,'Services-Produits'!$A$1:$B$2000,2,FALSE),"") -> 
C25: =IFERROR(VLOOKUP(A25,'Services-Produits'!$A$1:$B$2000,2,FALSE),"") -> 
A26: Total in CHF | D26: =SUM(D17:D25) -> 29189.54
A28: Thank you very much for your trust!

Sheet Sambodo Purnomo
A3: Invoice: 55H-02420-GM01
A4: 20.12.2024
A9: Mr. Sambodo Purnomo
A10: Jakarta
A11: Indonesia
A14: Description | B14: Qty | C14: Price | D14: Amount
A15: Patient: Sambodo Purnomo, M, 03.07.1973
A17: Gedächtnis Infusion | B17: 2 | C17: =IFERROR(VLOOKUP(A17,'Services-Produits'!$A$1:$B$2000,2,FALSE),"") -> 378 | D17: =IFERROR(B17*C17,"") -> 756
A18: Curcumin 75 mg | B18: 5 | C18: =IFERROR(VLOOKUP(A18,'Services-Produits'!$A$1:$B$2000,2,FALSE),"") -> 116.22 | D18: =IFERROR(B18*C18,"") -> 581.1
C19: =IFERROR(VLOOKUP(A19,'Services-Produits'!$A$1:$B$2000,2,FALSE),"") -> 
C20: =IFERROR(VLOOKUP(A20,'Services-Produits'!$A$1:$B$2000,2,FALSE),"") -> 
C21: =IFERROR(VLOOKUP(A21,'Services-Produits'!$A$1:$B$2000,2,FALSE),"") -> 
C22: =IFERROR(VLOOKUP(A22,'Services-Produits'!$A$1:$B$2000,2,FALSE),"") -> 
C23: =IFERROR(VLOOKUP(A23,'Services-Produits'!$A$1:$B$2000,2,FALSE),"") -> 
C24: =IFERROR(VLOOKUP(A24,'Services-Produits'!$A$1:$B$2000,2,FALSE),"") -> 
C25: =IFERROR(VLOOKUP(A25,'Services-Produits'!$A$1:$B$2000,2,FALSE),"") -> 
C26: =IFERROR(VLOOKUP(A26,'Services-Produits'!$A$1:$B$2000,2,FALSE),"") -> 
C27: =IFERROR(VLOOKUP(A27,'Services-Produits'!$A$1:$B$2000,2,FALSE),"") -> 
C28: =IFERROR(VLOOKUP(A28,'Services-Produits'!$A$1:$B$2000,2,FALSE),"") -> 
C29: =IFERROR(VLOOKUP(A29,'Services-Produits'!$A$1:$B$2000,2,FALSE),"") -> 
C30: =IFERROR(VLOOKUP(A30,'Services-Produits'!$A$1:$B$2000,2,FALSE),"") -> 
C31: =IFERROR(VLOOKUP(A31,'Services-Produits'!$A$1:$B$2000,2,FALSE),"") -> 
C32: =IFERROR(VLOOKUP(A32,'Services-Produits'!$A$1:$B$2000,2,FALSE),"") -> 
C33: =IFERROR(VLOOKUP(A33,'Services-Produits'!$A$1:$B$2000,2,FALSE),"") -> 
C34: =IFERROR(VLOOKUP(A34,'Services-Produits'!$A$1:$B$2000,2,FALSE),"") -> 
C35: =IFERROR(VLOOKUP(A35,'Services-Produits'!$A$1:$B$2000,2,FALSE),"") -> 
C36: =IFERROR(VLOOKUP(A36,'Services-Produits'!$A$1:$B$2000,2,FALSE),"") -> 
C37: =IFERROR(VLOOKUP(A37,'Services-Produits'!$A$1:$B$2000,2,FALSE),"") -> 
A38: Total in CHF | D38: =SUM(D17:D37) -> 1337.1
A40: Thank you very much for your trust!

Sheet Ahnar Magenda
A3: Invoice: 55H-02411-GM17
A4: 18.11.2024
A10: Mr. Ahnar Magenda
A11: Jakarta
A12: Indonesia
A14: Description | B14: Qty | C14: Price | D14: Amount
A15: Immun Akut | B15: 7 | C15: =IFERROR(VLOOKUP(A15,'Services-Produits'!$A$1:$B$2000,2,FALSE),"") -> 66.25 | D15: =IFERROR(B15*C15,"") -> 463.75
A16: C-Intercell 650 mg Vitamin C, 90 Kapseln | B16: 8 | C16: =IFERROR(VLOOKUP(A16,'Services-Produits'!$A$1:$B$2000,2,FALSE),"") -> 27.99 | D16: =IFERROR(B16*C16,"") -> 223.92
A17: Omega 3 | B17: 7 | C17: =IFERROR(VLOOKUP(A17,'Services-Produits'!$A$1:$B$2000,2,FALSE),"") -> 58.3 | D17: 408.1
A18: Sulgan | B18: 1 | C18: =IFERROR(VLOOKUP(A18,'Services-Produits'!$A$1:$B$2000,2,FALSE),"") -> 26.7 | D18: 26.7
A19: Omnibiotic | B19: 5 | C19: =IFERROR(VLOOKUP(A19,'Services-Produits'!$A$1:$B$2000,2,FALSE),"") -> 57.6 | D19: 288
A20: Microcare personalised | B20: 5 | C20: =IFERROR(VLOOKUP(A20,'Services-Produits'!$A$1:$B$2000,2,FALSE),"") -> 799.4 | D20: 3997
A21: Dr. Markus Puetz 29.05.24 - 31.05.24 | B21: 1 | C21: =IFERROR(VLOOKUP(A21,'Services-Produits'!$A$1:$B$2000,2,FALSE),"") -> 505.7 | D21: 505.7
A22: Dr. Roger Gmuer 20.09.24 | B22: 1 | C22: =IFERROR(VLOOKUP(A22,'Services-Produits'!$A$1:$B$2000,2,FALSE),"") -> 965.55 | D22: 965.55
A23: SSCells Biotech released - 8 Syringes | B23: 1 | C23: =IFERROR(VLOOKUP(A23,'Services-Produits'!$A$1:$B$2000,2,FALSE),"") -> 9748 | D23: 9748
A24: Wegovy 0.25 mg | B24: 16 | C24: =IFERROR(VLOOKUP(A24,'Services-Produits'!$A$1:$B$2000,2,FALSE),"") -> 178.95 | D24: 2863.2
A25: Xanax 2 mg | B25: 2 | C25: =IFERROR(VLOOKUP(A25,'Services-Produits'!$A$1:$B$2000,2,FALSE),"") -> 42.75 | D25: 85.5
A26: Xanax 2 mg retard | B26: 2 | C26: =IFERROR(VLOOKUP(A26,'Services-Produits'!$A$1:$B$2000,2,FALSE),"") -> 51.75 | D26: 103.5
A27: USZ
A28: Genetik test | B28: 1 | C28: =IFERROR(VLOOKUP(A28,'Services-Produits'!$A$1:$B$2000,2,FALSE),"") -> 2686.5 | D28: 2686.5
A29: USZ
A30: Gynecology treatment 30.05.24 - 17.06.24 | B30: 1 | C30: =IFERROR(VLOOKUP(A30,'Services-Produits'!$A$1:$B$2000,2,FALSE),"") -> 1972.15 | D30: 1972.15
A31: Dr. Markus Puetz - Hisrchlanden Hospital | C31: 627.4 | D31: 627.4
A32: Courrier Bern - Zürich | C32: 280 | D32: 280
A33: Medications: | C33: =IFERROR(VLOOKUP(A33,'Services-Produits'!$A$1:$B$2000,2,FALSE),"") -> 
A34: Xanax 2 mg 30 tablets | B34: 7 | C34: =IFERROR(VLOOKUP(A34,'Services-Produits'!$A$1:$B$2000,2,FALSE),"") -> 25.25 | D34: 176.75
A35: Prostagutt Uno | B35: 1 | C35: =IFERROR(VLOOKUP(A35,'Services-Produits'!$A$1:$B$2000,2,FALSE),"") -> 49.9 | D35: 49.9
A36: Lian Therapeut | C36: =IFERROR(VLOOKUP(A36,'Services-Produits'!$A$1:$B$2000,2,FALSE),"") -> 
A37: Supplement | B37: 1 | C37: =IFERROR(VLOOKUP(A37,'Services-Produits'!$A$1:$B$2000,2,FALSE),"") -> 162.72 | D37: 162.72
A38: Complemedis | B38: 1 | C38: =IFERROR(VLOOKUP(A38,'Services-Produits'!$A$1:$B$2000,2,FALSE),"") -> 74.2 | D38: 74.2
C39: =IFERROR(VLOOKUP(A39,'Services-Produits'!$A$1:$B$2000,2,FALSE),"") -> 
A40: Total in CHF | D40: =SUM(D15:D39) -> 25708.54
A42: Thank you very much for your trust!

Sheet Rizal
A3: Invoice: 55H-02412-GM02
A4: 05.12.2024
A9: Mr. Rizal
A10: Jakarta
A11: Indonesia
A14: Description | B14: Qty | C14: Price | D14: Amount
A15: Patient: Rizal, M
A17: Antioxidant Mix | B17: 1 | C17: =IFERROR(VLOOKUP(A17,'Services-Produits'!$A$1:$B$2000,2,FALSE),"") -> 410 | D17: =IFERROR(B17*C17,"") -> 410
A18: DCA | B18: 3 | C18: =IFERROR(VLOOKUP(A18,'Services-Produits'!$A$1:$B$2000,2,FALSE),"") -> 57 | D18: =IFERROR(B18*C18,"") -> 171
A19: Biotin | B19: 1 | C19: =IFERROR(VLOOKUP(A19,'Services-Produits'!$A$1:$B$2000,2,FALSE),"") -> 37.25 | D19: 37.25
A20: Selenase | B20: 1 | C20: =IFERROR(VLOOKUP(A20,'Services-Produits'!$A$1:$B$2000,2,FALSE),"") -> 175 | D20: 175
A21: Vitarubine | B21: 1 | C21: =IFERROR(VLOOKUP(A21,'Services-Produits'!$A$1:$B$2000,2,FALSE),"") -> 25.5 | D21: 25.5
A22: Vit C Streuli | B22: 1 | C22: =IFERROR(VLOOKUP(A22,'Services-Produits'!$A$1:$B$2000,2,FALSE),"") -> 30.4 | D22: 30.4
C23: =IFERROR(VLOOKUP(A23,'Services-Produits'!$A$1:$B$2000,2,FALSE),"") -> 
C24: =IFERROR(VLOOKUP(A24,'Services-Produits'!$A$1:$B$2000,2,FALSE),"") -> 
C25: =IFERROR(VLOOKUP(A25,'Services-Produits'!$A$1:$B$2000,2,FALSE),"") -> 
C26: =IFERROR(VLOOKUP(A26,'Services-Produits'!$A$1:$B$2000,2,FALSE),"") -> 
C27: =IFERROR(VLOOKUP(A27,'Services-Produits'!$A$1:$B$2000,2,FALSE),"") -> 
C28: =IFERROR(VLOOKUP(A28,'Services-Produits'!$A$1:$B$2000,2,FALSE),"") -> 
C29: =IFERROR(VLOOKUP(A29,'Services-Produits'!$A$1:$B$2000,2,FALSE),"") -> 
C30: =IFERROR(VLOOKUP(A30,'Services-Produits'!$A$1:$B$2000,2,FALSE),"") -> 
C31: =IFERROR(VLOOKUP(A31,'Services-Produits'!$A$1:$B$2000,2,FALSE),"") -> 
C32: =IFERROR(VLOOKUP(A32,'Services-Produits'!$A$1:$B$2000,2,FALSE),"") -> 
C33: =IFERROR(VLOOKUP(A33,'Services-Produits'!$A$1:$B$2000,2,FALSE),"") -> 
C34: =IFERROR(VLOOKUP(A34,'Services-Produits'!$A$1:$B$2000,2,FALSE),"") -> 
C35: =IFERROR(VLOOKUP(A35,'Services-Produits'!$A$1:$B$2000,2,FALSE),"") -> 
C36: =IFERROR(VLOOKUP(A36,'Services-Produits'!$A$1:$B$2000,2,FALSE),"") -> 
C37: =IFERROR(VLOOKUP(A37,'Services-Produits'!$A$1:$B$2000,2,FALSE),"") -> 
A38: Total in CHF | D38: =SUM(D17:D37) -> 849.15
A40: Thank you very much for your trust!

Sheet Aboe Bakar
A3: Invoice: 55H-02412-GM01
A4: 05.12.2024
A9: Mr. Aboe Bakar
A10: Jakarta
A11: Indonesia
A14: Description | B14: Qty | C14: Price | D14: Amount
A15: Patient: Aboe Bakar, M, 15.10.1969
A17: Selenase | B17: 1 | C17: =IFERROR(VLOOKUP(A17,'Services-Produits'!$A$1:$B$2000,2,FALSE),"") -> 175 | D17: =IFERROR(B17*C17,"") -> 175
A18: Diabetische Polyneuropathie | B18: 3 | C18: =IFERROR(VLOOKUP(A18,'Services-Produits'!$A$1:$B$2000,2,FALSE),"") -> 347.65 | D18: =IFERROR(B18*C18,"") -> 1042.95
A19: Antioxidant Mix | B19: 4 | C19: =IFERROR(VLOOKUP(A19,'Services-Produits'!$A$1:$B$2000,2,FALSE),"") -> 410 | D19: 1640
A20: Shoga Öl | B20: 1 | C20: =IFERROR(VLOOKUP(A20,'Services-Produits'!$A$1:$B$2000,2,FALSE),"") -> 670 | D20: 670
A21: Spermidin | B21: 3 | C21: =IFERROR(VLOOKUP(A21,'Services-Produits'!$A$1:$B$2000,2,FALSE),"") -> 182.35 | D21: 547.05
A22: Artesunat | B22: 1 | C22: =IFERROR(VLOOKUP(A22,'Services-Produits'!$A$1:$B$2000,2,FALSE),"") -> 67.2 | D22: 67.2
A23: Curcumin 75 mg | B23: 1 | C23: =IFERROR(VLOOKUP(A23,'Services-Produits'!$A$1:$B$2000,2,FALSE),"") -> 116.22 | D23: 116.22
A24: Skin Serum Swiss Microbiome | B24: 3 | C24: =IFERROR(VLOOKUP(A24,'Services-Produits'!$A$1:$B$2000,2,FALSE),"") -> 76.5 | D24: 229.5
C25: =IFERROR(VLOOKUP(A25,'Services-Produits'!$A$1:$B$2000,2,FALSE),"") -> 
C26: =IFERROR(VLOOKUP(A26,'Services-Produits'!$A$1:$B$2000,2,FALSE),"") -> 
C27: =IFERROR(VLOOKUP(A27,'Services-Produits'!$A$1:$B$2000,2,FALSE),"") -> 
C28: =IFERROR(VLOOKUP(A28,'Services-Produits'!$A$1:$B$2000,2,FALSE),"") -> 
C29: =IFERROR(VLOOKUP(A29,'Services-Produits'!$A$1:$B$2000,2,FALSE),"") -> 
C30: =IFERROR(VLOOKUP(A30,'Services-Produits'!$A$1:$B$2000,2,FALSE),"") -> 
C31: =IFERROR(VLOOKUP(A31,'Services-Produits'!$A$1:$B$2000,2,FALSE),"") -> 
C32: =IFERROR(VLOOKUP(A32,'Services-Produits'!$A$1:$B$2000,2,FALSE),"") -> 
C33: =IFERROR(VLOOKUP(A33,'Services-Produits'!$A$1:$B$2000,2,FALSE),"") -> 
C34: =IFERROR(VLOOKUP(A34,'Services-Produits'!$A$1:$B$2000,2,FALSE),"") -> 
C35: =IFERROR(VLOOKUP(A35,'Services-Produits'!$A$1:$B$2000,2,FALSE),"") -> 
C36: =IFERROR(VLOOKUP(A36,'Services-Produits'!$A$1:$B$2000,2,FALSE),"") -> 
C37: =IFERROR(VLOOKUP(A37,'Services-Produits'!$A$1:$B$2000,2,FALSE),"") -> 
A38: Total in CHF | D38: =SUM(D17:D37) -> 4487.92
A40: Thank you very much for your trust!

Sheet Ita Yuliati
A3: Invoice: 55H-02411-GM04
A4: 18.11.2024
A10: Ita Yuliati
A11: Jakarta
A12: Indonesia
A14: Description | B14: Qty | C14: Price | D14: Amount
A15: Patient: Ita Yuliati, F
A17: Wegovy 0.25 mg | B17: 1 | C17: =IFERROR(VLOOKUP(A17,'Services-Produits'!$A$1:$B$2000,2,FALSE),"") -> 178.95 | D17: =IFERROR(B17*C17,"") -> 178.95
A18: Wegovy 0.5mg | B18: 1 | C18: =IFERROR(VLOOKUP(A18,'Services-Produits'!$A$1:$B$2000,2,FALSE),"") -> 178.95 | D18: =IFERROR(B18*C18,"") -> 178.95
C19: =IFERROR(VLOOKUP(A19,'Services-Produits'!$A$1:$B$2000,2,FALSE),"") -> 
C20: =IFERROR(VLOOKUP(A20,'Services-Produits'!$A$1:$B$2000,2,FALSE),"") -> 
C21: =IFERROR(VLOOKUP(A21,'Services-Produits'!$A$1:$B$2000,2,FALSE),"") -> 
C22: =IFERROR(VLOOKUP(A22,'Services-Produits'!$A$1:$B$2000,2,FALSE),"") -> 
C23: =IFERROR(VLOOKUP(A23,'Services-Produits'!$A$1:$B$2000,2,FALSE),"") -> 
C24: =IFERROR(VLOOKUP(A24,'Services-Produits'!$A$1:$B$2000,2,FALSE),"") -> 
C25: =IFERROR(VLOOKUP(A25,'Services-Produits'!$A$1:$B$2000,2,FALSE),"") -> 
A26: Total in CHF | D26: =SUM(D17:D25) -> 357.9
A28: Thank you very much for your trust!

Sheet Agung Yadha Adhi Nuqraha
A3: Invoice: 55H-02411-GM18
A4: 18.11.2024
A9: Mr. Agung Yadha Adhi Nuqraha
A10: Jakarta
A11: Indonesia
A14: Description | B14: Qty | C14: Price | D14: Amount
A15: Patient: Agung Yadha Adhi Nuqraha, M, 29.06.1981
A17: Antioxidant Mix | B17: 4 | C17: =IFERROR(VLOOKUP(A17,'Services-Produits'!$A$1:$B$2000,2,FALSE),"") -> 410 | D17: =IFERROR(B17*C17,"") -> 1640
A18: Mitochondrien Infusion | B18: 4 | C18: =IFERROR(VLOOKUP(A18,'Services-Produits'!$A$1:$B$2000,2,FALSE),"") -> 428.7 | D18: =IFERROR(B18*C18,"") -> 1714.8
A19: Protokol Lösung 1 Infusion | B19: 2 | C19: =IFERROR(VLOOKUP(A19,'Services-Produits'!$A$1:$B$2000,2,FALSE),"") -> 79 | D19: 158
A20: Hydroxiprolin 2 g | B20: 3 | C20: =IFERROR(VLOOKUP(A20,'Services-Produits'!$A$1:$B$2000,2,FALSE),"") -> 68.9 | D20: 206.7
A21: Biotin | B21: 4 | C21: =IFERROR(VLOOKUP(A21,'Services-Produits'!$A$1:$B$2000,2,FALSE),"") -> 37.25 | D21: 149
A22: NAD+ 62.5 mg | B22: 8 | C22: =IFERROR(VLOOKUP(A22,'Services-Produits'!$A$1:$B$2000,2,FALSE),"") -> 137.2 | D22: 1097.6
A23: Erbasit | B23: 1 | C23: =IFERROR(VLOOKUP(A23,'Services-Produits'!$A$1:$B$2000,2,FALSE),"") -> 30.9 | D23: 30.9
A24: Microbiome | B24: 1 | C24: =IFERROR(VLOOKUP(A24,'Services-Produits'!$A$1:$B$2000,2,FALSE),"") -> 74.95 | D24: 74.95
A25: ADEK | B25: 1 | C25: =IFERROR(VLOOKUP(A25,'Services-Produits'!$A$1:$B$2000,2,FALSE),"") -> 37.6 | D25: 37.6
A26: Omnibiotic | B26: 1 | C26: =IFERROR(VLOOKUP(A26,'Services-Produits'!$A$1:$B$2000,2,FALSE),"") -> 57.6 | D26: 57.6
A27: Spermidin | B27: 5 | C27: =IFERROR(VLOOKUP(A27,'Services-Produits'!$A$1:$B$2000,2,FALSE),"") -> 182.35 | D27: 911.75
A28: Hydroxiprolin 2 g | B28: 1 | C28: =IFERROR(VLOOKUP(A28,'Services-Produits'!$A$1:$B$2000,2,FALSE),"") -> 68.9 | D28: 68.9
A29: Glucosamin | B29: 1 | C29: =IFERROR(VLOOKUP(A29,'Services-Produits'!$A$1:$B$2000,2,FALSE),"") -> 44.2 | D29: 44.2
A30: Erbasit | B30: 1 | C30: =IFERROR(VLOOKUP(A30,'Services-Produits'!$A$1:$B$2000,2,FALSE),"") -> 30.9 | D30: 30.9
A31: Vit D3 Streuli | B31: 1 | C31: =IFERROR(VLOOKUP(A31,'Services-Produits'!$A$1:$B$2000,2,FALSE),"") -> 26.3 | D31: 26.3
A32: Vitarubine | B32: 1 | C32: =IFERROR(VLOOKUP(A32,'Services-Produits'!$A$1:$B$2000,2,FALSE),"") -> 25.5 | D32: 25.5
A33: Selenase | B33: 2 | C33: =IFERROR(VLOOKUP(A33,'Services-Produits'!$A$1:$B$2000,2,FALSE),"") -> 175 | D33: 350
A34: NAD+ 62.5 mg | B34: 5 | C34: =IFERROR(VLOOKUP(A34,'Services-Produits'!$A$1:$B$2000,2,FALSE),"") -> 137.2 | D34: 686
C35: =IFERROR(VLOOKUP(A35,'Services-Produits'!$A$1:$B$2000,2,FALSE),"") -> 
C36: =IFERROR(VLOOKUP(A36,'Services-Produits'!$A$1:$B$2000,2,FALSE),"") -> 
C37: =IFERROR(VLOOKUP(A37,'Services-Produits'!$A$1:$B$2000,2,FALSE),"") -> 
A38: Total in CHF | D38: =SUM(D17:D37) -> 7310.7
A40: Thank you very much for your trust!

Sheet Bridjen Pol Tonny Hermawan
A3: Invoice: 55H-02411-GM02
A4: 18.11.2024
A10: Mr. Bridjen Pol Tonny Hermawan
A11: Jakarta
A12: Indonesia
A14: Description | B14: Qty | C14: Price | D14: Amount
A15: Patient: Budi Gunawan, M
A17: Immunocare personalised Budi Gunawan 4 months | B17: 1 | C17: =IFERROR(VLOOKUP(A17,'Services-Produits'!$A$1:$B$2000,2,FALSE),"") -> 1207.35 | D17: =IFERROR(B17*C17,"") -> 1207.35
A18: Immunocare personalised Sudarti 4 months | B18: 1 | C18: =IFERROR(VLOOKUP(A18,'Services-Produits'!$A$1:$B$2000,2,FALSE),"") -> 1108.65 | D18: =IFERROR(B18*C18,"") -> 1108.65
A19: Omega 3 | B19: 3 | C19: =IFERROR(VLOOKUP(A19,'Services-Produits'!$A$1:$B$2000,2,FALSE),"") -> 58.3 | D19: 174.9
C20: =IFERROR(VLOOKUP(A20,'Services-Produits'!$A$1:$B$2000,2,FALSE),"") -> 
C21: =IFERROR(VLOOKUP(A21,'Services-Produits'!$A$1:$B$2000,2,FALSE),"") -> 
C22: =IFERROR(VLOOKUP(A22,'Services-Produits'!$A$1:$B$2000,2,FALSE),"") -> 
C23: =IFERROR(VLOOKUP(A23,'Services-Produits'!$A$1:$B$2000,2,FALSE),"") -> 
C24: =IFERROR(VLOOKUP(A24,'Services-Produits'!$A$1:$B$2000,2,FALSE),"") -> 
C25: =IFERROR(VLOOKUP(A25,'Services-Produits'!$A$1:$B$2000,2,FALSE),"") -> 
A26: Total in CHF | D26: =SUM(D17:D25) -> 2490.9
A28: Thank you very much for your trust!

Sheet Wisnu Soehardono
A3: Invoice: 55H-02411-GM03
A4: 18.11.2024
A10: Mr. Wisnu Soehardono
A11: Jakarta
A12: Indonesia
A14: Description | B14: Qty | C14: Price | D14: Amount
A15: Patient: Wisnu Soehardono, M
A17: Beloc Zok 25 mg | B17: 1 | C17: =IFERROR(VLOOKUP(A17,'Services-Produits'!$A$1:$B$2000,2,FALSE),"") -> 16.5 | D17: =IFERROR(B17*C17,"") -> 16.5
A18: Tambocor 100 mg | B18: 1 | C18: =IFERROR(VLOOKUP(A18,'Services-Produits'!$A$1:$B$2000,2,FALSE),"") -> 55.75 | D18: =IFERROR(B18*C18,"") -> 55.75
A19: Vitamin C | B19: 1 | C19: =IFERROR(VLOOKUP(A19,'Services-Produits'!$A$1:$B$2000,2,FALSE),"") -> 27.99 | D19: 27.99
A20: Cyspera | B20: 11 | C20: =IFERROR(VLOOKUP(A20,'Services-Produits'!$A$1:$B$2000,2,FALSE),"") -> 168 | D20: 1848
C21: =IFERROR(VLOOKUP(A21,'Services-Produits'!$A$1:$B$2000,2,FALSE),"") -> 
C22: =IFERROR(VLOOKUP(A22,'Services-Produits'!$A$1:$B$2000,2,FALSE),"") -> 
C23: =IFERROR(VLOOKUP(A23,'Services-Produits'!$A$1:$B$2000,2,FALSE),"") -> 
C24: =IFERROR(VLOOKUP(A24,'Services-Produits'!$A$1:$B$2000,2,FALSE),"") -> 
A25: Total in CHF | D25: =SUM(D17:D24) -> 1948.24
A27: Thank you very much for your trust!

Sheet Dobias Iskandar
A3: Invoice: 55H-02411-GM05
A4: 18.11.2024
A9: Mr. Dobias Iskandar
A10: Jakarta
A11: Indonesia
A14: Description | B14: Qty | C14: Price | D14: Amount
A15: Patient: Dobias Iskandar, M, 16.11.1965
A17: Lubex 500 ml | B17: 2 | C17: =IFERROR(VLOOKUP(A17,'Services-Produits'!$A$1:$B$2000,2,FALSE),"") -> 29.55 | D17: =IFERROR(B17*C17,"") -> 59.1
A18: Lubex 150 ml | B18: 4 | C18: =IFERROR(VLOOKUP(A18,'Services-Produits'!$A$1:$B$2000,2,FALSE),"") -> 11.65 | D18: =IFERROR(B18*C18,"") -> 46.6
A19: Microbiome | B19: 3 | C19: =IFERROR(VLOOKUP(A19,'Services-Produits'!$A$1:$B$2000,2,FALSE),"") -> 74.95 | D19: 224.85
A20: Diabetische Polyneuropathie | B20: 2 | C20: =IFERROR(VLOOKUP(A20,'Services-Produits'!$A$1:$B$2000,2,FALSE),"") -> 347.65 | D20: 695.3
A21: Antioxidant Mix | B21: 2 | C21: =IFERROR(VLOOKUP(A21,'Services-Produits'!$A$1:$B$2000,2,FALSE),"") -> 410 | D21: 820
A22: Hydroxiprolin 2 g | B22: 6 | C22: =IFERROR(VLOOKUP(A22,'Services-Produits'!$A$1:$B$2000,2,FALSE),"") -> 68.9 | D22: 413.4
A23: Cerebrolysin 10 ml | B23: 1 | C23: =IFERROR(VLOOKUP(A23,'Services-Produits'!$A$1:$B$2000,2,FALSE),"") -> 99.6 | D23: 99.6
C24: =IFERROR(VLOOKUP(A24,'Services-Produits'!$A$1:$B$2000,2,FALSE),"") -> 
C25: =IFERROR(VLOOKUP(A25,'Services-Produits'!$A$1:$B$2000,2,FALSE),"") -> 
C26: =IFERROR(VLOOKUP(A26,'Services-Produits'!$A$1:$B$2000,2,FALSE),"") -> 
C27: =IFERROR(VLOOKUP(A27,'Services-Produits'!$A$1:$B$2000,2,FALSE),"") -> 
C28: =IFERROR(VLOOKUP(A28,'Services-Produits'!$A$1:$B$2000,2,FALSE),"") -> 
C29: =IFERROR(VLOOKUP(A29,'Services-Produits'!$A$1:$B$2000,2,FALSE),"") -> 
C30: =IFERROR(VLOOKUP(A30,'Services-Produits'!$A$1:$B$2000,2,FALSE),"") -> 
C31: =IFERROR(VLOOKUP(A31,'Services-Produits'!$A$1:$B$2000,2,FALSE),"") -> 
C32: =IFERROR(VLOOKUP(A32,'Services-Produits'!$A$1:$B$2000,2,FALSE),"") -> 
C33: =IFERROR(VLOOKUP(A33,'Services-Produits'!$A$1:$B$2000,2,FALSE),"") -> 
C34: =IFERROR(VLOOKUP(A34,'Services-Produits'!$A$1:$B$2000,2,FALSE),"") -> 
C35: =IFERROR(VLOOKUP(A35,'Services-Produits'!$A$1:$B$2000,2,FALSE),"") -> 
C36: =IFERROR(VLOOKUP(A36,'Services-Produits'!$A$1:$B$2000,2,FALSE),"") -> 
C37: =IFERROR(VLOOKUP(A37,'Services-Produits'!$A$1:$B$2000,2,FALSE),"") -> 
A38: Total in CHF | D38: =SUM(D17:D37) -> 2358.85
A40: Thank you very much for your trust!

Sheet Peter Pramana
A3: Invoice: 55H-02411-GM06
A4: 18.11.2024
A9: Mr. Peter Pramana
A10: Jakarta
A11: Indonesia
A14: Description | B14: Qty | C14: Price | D14: Amount
A15: Patient: Peter Pramana, M, 10.08.1974
A17: Liver Detox Liv.52 | B17: 1 | C17: =IFERROR(VLOOKUP(A17,'Services-Produits'!$A$1:$B$2000,2,FALSE),"") -> 21 | D17: =IFERROR(B17*C17,"") -> 21
A18: Cholin Inject | B18: 2 | C18: =IFERROR(VLOOKUP(A18,'Services-Produits'!$A$1:$B$2000,2,FALSE),"") -> 43 | D18: =IFERROR(B18*C18,"") -> 86
A19: Schwarzkümmel | B19: 2 | C19: =IFERROR(VLOOKUP(A19,'Services-Produits'!$A$1:$B$2000,2,FALSE),"") -> 39 | D19: 78
A20: Bioflorin | B20: 2 | C20: =IFERROR(VLOOKUP(A20,'Services-Produits'!$A$1:$B$2000,2,FALSE),"") -> 18.35 | D20: 36.7
C21: =IFERROR(VLOOKUP(A21,'Services-Produits'!$A$1:$B$2000,2,FALSE),"") -> 
C22: =IFERROR(VLOOKUP(A22,'Services-Produits'!$A$1:$B$2000,2,FALSE),"") -> 
C23: =IFERROR(VLOOKUP(A23,'Services-Produits'!$A$1:$B$2000,2,FALSE),"") -> 
C24: =IFERROR(VLOOKUP(A24,'Services-Produits'!$A$1:$B$2000,2,FALSE),"") -> 
C25: =IFERROR(VLOOKUP(A25,'Services-Produits'!$A$1:$B$2000,2,FALSE),"") -> 
C26: =IFERROR(VLOOKUP(A26,'Services-Produits'!$A$1:$B$2000,2,FALSE),"") -> 
C27: =IFERROR(VLOOKUP(A27,'Services-Produits'!$A$1:$B$2000,2,FALSE),"") -> 
C28: =IFERROR(VLOOKUP(A28,'Services-Produits'!$A$1:$B$2000,2,FALSE),"") -> 
C29: =IFERROR(VLOOKUP(A29,'Services-Produits'!$A$1:$B$2000,2,FALSE),"") -> 
C30: =IFERROR(VLOOKUP(A30,'Services-Produits'!$A$1:$B$2000,2,FALSE),"") -> 
C31: =IFERROR(VLOOKUP(A31,'Services-Produits'!$A$1:$B$2000,2,FALSE),"") -> 
C32: =IFERROR(VLOOKUP(A32,'Services-Produits'!$A$1:$B$2000,2,FALSE),"") -> 
C33: =IFERROR(VLOOKUP(A33,'Services-Produits'!$A$1:$B$2000,2,FALSE),"") -> 
C34: =IFERROR(VLOOKUP(A34,'Services-Produits'!$A$1:$B$2000,2,FALSE),"") -> 
C35: =IFERROR(VLOOKUP(A35,'Services-Produits'!$A$1:$B$2000,2,FALSE),"") -> 
C36: =IFERROR(VLOOKUP(A36,'Services-Produits'!$A$1:$B$2000,2,FALSE),"") -> 
C37: =IFERROR(VLOOKUP(A37,'Services-Produits'!$A$1:$B$2000,2,FALSE),"") -> 
A38: Total in CHF | D38: =SUM(D17:D37) -> 221.7
A40: Thank you very much for your trust!

Sheet Herman Herry Adranacus
A3: Invoice: 55H-02411-GM07
A4: 18.11.2024
A9: Mr. Herman Herry Adranacus
A10: Jakarta
A11: Indonesia
A14: Description | B14: Qty | C14: Price | D14: Amount
A15: Patient: Herman Herry Adranacus, M, 26.11.1962
A17: Mitochondrien Infusion | B17: 2 | C17: =IFERROR(VLOOKUP(A17,'Services-Produits'!$A$1:$B$2000,2,FALSE),"") -> 428.7 | D17: =IFERROR(B17*C17,"") -> 857.4
A18: Gut Microbiome 2 transplants | B18: 1 | C18: =IFERROR(VLOOKUP(A18,'Services-Produits'!$A$1:$B$2000,2,FALSE),"") -> 14399.5 | D18: =IFERROR(B18*C18,"") -> 14399.5
A19: Gut Microbiome 2 transplants 15% discount | C19: =D18*0.15 -> 2159.925 | D19: =-C19 -> -2159.925
A20: Diabetische Polyneuropathie | B20: 2 | C20: =IFERROR(VLOOKUP(A20,'Services-Produits'!$A$1:$B$2000,2,FALSE),"") -> 347.65 | D20: 695.3
A21: Protokol Lösung 1 Infusion | B21: 2 | C21: =IFERROR(VLOOKUP(A21,'Services-Produits'!$A$1:$B$2000,2,FALSE),"") -> 79 | D21: 158
A22: Glutathion red. Injekt | B22: 5 | C22: =IFERROR(VLOOKUP(A22,'Services-Produits'!$A$1:$B$2000,2,FALSE),"") -> 62 | D22: 310
A23: Biotin | B23: 5 | C23: =IFERROR(VLOOKUP(A23,'Services-Produits'!$A$1:$B$2000,2,FALSE),"") -> 37.25 | D23: 186.25
A24: NAD+ | B24: 6 | C24: =IFERROR(VLOOKUP(A24,'Services-Produits'!$A$1:$B$2000,2,FALSE),"") -> 
A25: Bosvene Akba | B25: 2 | C25: =IFERROR(VLOOKUP(A25,'Services-Produits'!$A$1:$B$2000,2,FALSE),"") -> 215.11 | D25: 430.22
A26: Reservatrol + NaCl 0,9% 300 ml | B26: 5 | C26: =IFERROR(VLOOKUP(A26,'Services-Produits'!$A$1:$B$2000,2,FALSE),"") -> 178 | D26: 890
A27: Curcumin 150 mg | B27: 7 | C27: =IFERROR(VLOOKUP(A27,'Services-Produits'!$A$1:$B$2000,2,FALSE),"") -> 229.2 | D27: 1604.4
A28: Cholin Inject | B28: 3 | C28: =IFERROR(VLOOKUP(A28,'Services-Produits'!$A$1:$B$2000,2,FALSE),"") -> 43 | D28: 129
A29: Cerebrolysin 10 ml | B29: 9 | C29: =IFERROR(VLOOKUP(A29,'Services-Produits'!$A$1:$B$2000,2,FALSE),"") -> 99.6 | D29: 896.4
A30: Deposit stem cell therapy | B30: 1 | C30: =IFERROR(VLOOKUP(A30,'Services-Produits'!$A$1:$B$2000,2,FALSE),"") -> 41000 | D30: 41000
A31: Payment received | C31: 19714.51 | D31: =IF(A31="Payment received",-C31,0) -> -19714.51
C32: =IFERROR(VLOOKUP(A32,'Services-Produits'!$A$1:$B$2000,2,FALSE),"") -> 
C33: =IFERROR(VLOOKUP(A33,'Services-Produits'!$A$1:$B$2000,2,FALSE),"") -> 
C34: =IFERROR(VLOOKUP(A34,'Services-Produits'!$A$1:$B$2000,2,FALSE),"") -> 
C35: =IFERROR(VLOOKUP(A35,'Services-Produits'!$A$1:$B$2000,2,FALSE),"") -> 
C36: =IFERROR(VLOOKUP(A36,'Services-Produits'!$A$1:$B$2000,2,FALSE),"") -> 
C37: =IFERROR(VLOOKUP(A37,'Services-Produits'!$A$1:$B$2000,2,FALSE),"") -> 
A38: Total in CHF | D38: =SUM(D17:D37) -> 39682.035
A40: Thank you very much for your trust!

Sheet Thiha Aung
A3: Invoice: 55H-02411-GM08
A4: 18.11.2024
A9: Mr. Thiha Aung
A10: Jakarta
A11: Indonesia
A14: Description | B14: Qty | C14: Price | D14: Amount
A15: Patient: Thiha Aung, M, 19.09.1974
A17: Gut Microbiome 2 transplants | B17: 1 | C17: =IFERROR(VLOOKUP(A17,'Services-Produits'!$A$1:$B$2000,2,FALSE),"") -> 14399.5 | D17: =IFERROR(B17*C17,"") -> 14399.5
C18: =IFERROR(VLOOKUP(#REF!,'Services-Produits'!$A$1:$B$2000,2,FALSE),"") ->  | D18: =IFERROR(B18*C18,"") -> 
C19: =IFERROR(VLOOKUP(A18,'Services-Produits'!$A$1:$B$2000,2,FALSE),"") -> 
C20: =IFERROR(VLOOKUP(A20,'Services-Produits'!$A$1:$B$2000,2,FALSE),"") -> 
C21: =IFERROR(VLOOKUP(A21,'Services-Produits'!$A$1:$B$2000,2,FALSE),"") -> 
C22: =IFERROR(VLOOKUP(A22,'Services-Produits'!$A$1:$B$2000,2,FALSE),"") -> 
C23: =IFERROR(VLOOKUP(A23,'Services-Produits'!$A$1:$B$2000,2,FALSE),"") -> 
C24: =IFERROR(VLOOKUP(A24,'Services-Produits'!$A$1:$B$2000,2,FALSE),"") -> 
C25: =IFERROR(VLOOKUP(A25,'Services-Produits'!$A$1:$B$2000,2,FALSE),"") -> 
C26: =IFERROR(VLOOKUP(A26,'Services-Produits'!$A$1:$B$2000,2,FALSE),"") -> 
C27: =IFERROR(VLOOKUP(A27,'Services-Produits'!$A$1:$B$2000,2,FALSE),"") -> 
C28: =IFERROR(VLOOKUP(A28,'Services-Produits'!$A$1:$B$2000,2,FALSE),"") -> 
C29: =IFERROR(VLOOKUP(A29,'Services-Produits'!$A$1:$B$2000,2,FALSE),"") -> 
C30: =IFERROR(VLOOKUP(A30,'Services-Produits'!$A$1:$B$2000,2,FALSE),"") -> 
C31: =IFERROR(VLOOKUP(A31,'Services-Produits'!$A$1:$B$2000,2,FALSE),"") -> 
C32: =IFERROR(VLOOKUP(A32,'Services-Produits'!$A$1:$B$2000,2,FALSE),"") -> 
C33: =IFERROR(VLOOKUP(A33,'Services-Produits'!$A$1:$B$2000,2,FALSE),"") -> 
C34: =IFERROR(VLOOKUP(A34,'Services-Produits'!$A$1:$B$2000,2,FALSE),"") -> 
C35: =IFERROR(VLOOKUP(A35,'Services-Produits'!$A$1:$B$2000,2,FALSE),"") -> 
C36: =IFERROR(VLOOKUP(A36,'Services-Produits'!$A$1:$B$2000,2,FALSE),"") -> 
C37: =IFERROR(VLOOKUP(A37,'Services-Produits'!$A$1:$B$2000,2,FALSE),"") -> 
A38: Total in CHF | D38: =SUM(D17:D37) -> 14399.5
A40: Thank you very much for your trust!

Sheet Adex Yudiswan
A3: Invoice: 55H-02411-GM09
A4: 18.11.2024
A9: Mr. Adex Yudiswan
A10: Jakarta
A11: Indonesia
A14: Description | B14: Qty | C14: Price | D14: Amount
A15: Patient: Adex Yudiswan, M, 01.12.1974
A17: Raab Flohsamen | B17: 6 | C17: =IFERROR(VLOOKUP(A17,'Services-Produits'!$A$1:$B$2000,2,FALSE),"") -> 14.85 | D17: =IFERROR(B17*C17,"") -> 89.1
A18: Rhodiola | B18: 2 | C18: =IFERROR(VLOOKUP(A18,'Services-Produits'!$A$1:$B$2000,2,FALSE),"") -> 33.45 | D18: =IFERROR(B18*C18,"") -> 66.9
A19: Xanax 2 mg | B19: 1 | C19: =IFERROR(VLOOKUP(A19,'Services-Produits'!$A$1:$B$2000,2,FALSE),"") -> 42.75 | D19: 42.75
A20: Omnibiotic | B20: 1 | C20: =IFERROR(VLOOKUP(A20,'Services-Produits'!$A$1:$B$2000,2,FALSE),"") -> 57.6 | D20: 57.6
A21: Tadalafil-Mepha 5 mg | B21: 4 | C21: =IFERROR(VLOOKUP(A21,'Services-Produits'!$A$1:$B$2000,2,FALSE),"") -> 115 | D21: 460
A22: Vit D3 Streuli | B22: 1 | C22: =IFERROR(VLOOKUP(A22,'Services-Produits'!$A$1:$B$2000,2,FALSE),"") -> 26.3 | D22: 26.3
A23: Vit B12 Zentivu | B23: 2 | C23: =IFERROR(VLOOKUP(A23,'Services-Produits'!$A$1:$B$2000,2,FALSE),"") -> 25.5 | D23: 51
A24: NAD+ | B24: 4 | C24: =IFERROR(VLOOKUP(A24,'Services-Produits'!$A$1:$B$2000,2,FALSE),"") -> 
A25: Antioxidant Mix | B25: 2 | C25: =IFERROR(VLOOKUP(A25,'Services-Produits'!$A$1:$B$2000,2,FALSE),"") -> 410 | D25: 820
A26: Mitochondrien Mix Infusion | B26: 2 | C26: =IFERROR(VLOOKUP(A26,'Services-Produits'!$A$1:$B$2000,2,FALSE),"") -> 428.7 | D26: 857.4
C27: =IFERROR(VLOOKUP(A27,'Services-Produits'!$A$1:$B$2000,2,FALSE),"") -> 
C28: =IFERROR(VLOOKUP(A28,'Services-Produits'!$A$1:$B$2000,2,FALSE),"") -> 
C29: =IFERROR(VLOOKUP(A29,'Services-Produits'!$A$1:$B$2000,2,FALSE),"") -> 
C30: =IFERROR(VLOOKUP(A30,'Services-Produits'!$A$1:$B$2000,2,FALSE),"") -> 
C31: =IFERROR(VLOOKUP(A31,'Services-Produits'!$A$1:$B$2000,2,FALSE),"") -> 
C32: =IFERROR(VLOOKUP(A32,'Services-Produits'!$A$1:$B$2000,2,FALSE),"") -> 
C33: =IFERROR(VLOOKUP(A33,'Services-Produits'!$A$1:$B$2000,2,FALSE),"") -> 
C34: =IFERROR(VLOOKUP(A34,'Services-Produits'!$A$1:$B$2000,2,FALSE),"") -> 
C35: =IFERROR(VLOOKUP(A35,'Services-Produits'!$A$1:$B$2000,2,FALSE),"") -> 
C36: =IFERROR(VLOOKUP(A36,'Services-Produits'!$A$1:$B$2000,2,FALSE),"") -> 
C37: =IFERROR(VLOOKUP(A37,'Services-Produits'!$A$1:$B$2000,2,FALSE),"") -> 
A38: Total in CHF | D38: =SUM(D17:D37) -> 2471.05
A40: Thank you very much for your trust!

Sheet Muljadi Tjahjono
A3: Invoice: 55H-02411-GM10
A4: 18.11.2024
A9: Mr. Muljadi Tjahjono
A10: Jakarta
A11: Indonesia
A14: Description | B14: Qty | C14: Price | D14: Amount
A15: Patient: Muljadi Tjahjono, M, 22.01.1965
A17: Stem cell treatment | B17: 1 | C17: =IFERROR(VLOOKUP(A17,'Services-Produits'!$A$1:$B$2000,2,FALSE),"") -> 49370 | D17: =IFERROR(B17*C17,"") -> 49370
A18: Lipoaspiration
A19: Anesthesie
A20: Facial contouring
A21: Hair & organ rejuvenation
A22: PRP
A23: SVF transplant
A24: Cell banking 10 years
A25: hADSC processing
A26: hADSC cell released QTY 5.000.000 released 28.10.23
A27: Mitochondrien Infusion | B27: 1 | C27: =IFERROR(VLOOKUP(A27,'Services-Produits'!$A$1:$B$2000,2,FALSE),"") -> 428.7 | D27: =IFERROR(B27*C27,"") -> 428.7
C28: =IFERROR(VLOOKUP(A28,'Services-Produits'!$A$1:$B$2000,2,FALSE),"") -> 
C29: =IFERROR(VLOOKUP(A29,'Services-Produits'!$A$1:$B$2000,2,FALSE),"") -> 
C30: =IFERROR(VLOOKUP(A30,'Services-Produits'!$A$1:$B$2000,2,FALSE),"") -> 
C31: =IFERROR(VLOOKUP(A31,'Services-Produits'!$A$1:$B$2000,2,FALSE),"") -> 
C32: =IFERROR(VLOOKUP(A32,'Services-Produits'!$A$1:$B$2000,2,FALSE),"") -> 
C33: =IFERROR(VLOOKUP(A33,'Services-Produits'!$A$1:$B$2000,2,FALSE),"") -> 
C34: =IFERROR(VLOOKUP(A34,'Services-Produits'!$A$1:$B$2000,2,FALSE),"") -> 
C35: =IFERROR(VLOOKUP(A35,'Services-Produits'!$A$1:$B$2000,2,FALSE),"") -> 
C36: =IFERROR(VLOOKUP(A36,'Services-Produits'!$A$1:$B$2000,2,FALSE),"") -> 
C37: =IFERROR(VLOOKUP(A37,'Services-Produits'!$A$1:$B$2000,2,FALSE),"") -> 
A38: Total in CHF | D38: =SUM(D17:D37) -> 49798.7
A40: Thank you very much for your trust!

Sheet Herly Julianti
A3: Invoice: 55H-02411-GM016
A4: 18.11.2024
A9: Mr. Herly Julianti
A10: Jakarta
A11: Indonesia
A14: Description | B14: Qty | C14: Price | D14: Amount
A15: Patient: Herly Julianti, M, 01.07.1975
A17: Stem cell treatment | B17: 1 | C17: =IFERROR(VLOOKUP(A17,'Services-Produits'!$A$1:$B$2000,2,FALSE),"") -> 49370 | D17: =IFERROR(B17*C17,"") -> 49370
A18: Lipoaspiration
A19: Anesthesie
A20: Facial contouring
A21: Hair & organ rejuvenation
A22: PRP
A23: SVF transplant
A24: Cell banking 10 years
A25: hADSC processing
A26: hADSC cell released QTY 5.000.000 released 28.10.23
A27: Mitochondrien Infusion | B27: 1 | C27: =IFERROR(VLOOKUP(A27,'Services-Produits'!$A$1:$B$2000,2,FALSE),"") -> 428.7 | D27: =IFERROR(B27*C27,"") -> 428.7
C28: =IFERROR(VLOOKUP(A28,'Services-Produits'!$A$1:$B$2000,2,FALSE),"") -> 
C29: =IFERROR(VLOOKUP(A29,'Services-Produits'!$A$1:$B$2000,2,FALSE),"") -> 
C30: =IFERROR(VLOOKUP(A30,'Services-Produits'!$A$1:$B$2000,2,FALSE),"") -> 
C31: =IFERROR(VLOOKUP(A31,'Services-Produits'!$A$1:$B$2000,2,FALSE),"") -> 
C32: =IFERROR(VLOOKUP(A32,'Services-Produits'!$A$1:$B$2000,2,FALSE),"") -> 
C33: =IFERROR(VLOOKUP(A33,'Services-Produits'!$A$1:$B$2000,2,FALSE),"") -> 
C34: =IFERROR(VLOOKUP(A34,'Services-Produits'!$A$1:$B$2000,2,FALSE),"") -> 
C35: =IFERROR(VLOOKUP(A35,'Services-Produits'!$A$1:$B$2000,2,FALSE),"") -> 
C36: =IFERROR(VLOOKUP(A36,'Services-Produits'!$A$1:$B$2000,2,FALSE),"") -> 
C37: =IFERROR(VLOOKUP(A37,'Services-Produits'!$A$1:$B$2000,2,FALSE),"") -> 
A38: Total in CHF | D38: =SUM(D17:D37) -> 49798.7
A40: Thank you very much for your trust!

Sheet Invoices 18.11.24
A2: Invoices from 18.11.2024
A3: Patient name | B3: Invoice Nr. | C3: SM/SBL | D3: Amount(CHF) | E3: Amount(IDR)
A4: Bridjen Pol Tonny Hermawan | B4: 55H-02411-GM02 | C4: SBL | D4: 2490.9
A5: Wisnu Soehardono | B5: 55H-02411-GM03 | C5: SBL | D5: 1948.24
A6: Ita Yuliati | B6: 55H-02411-GM04 | C6: SBL | D6: 357.9
A7: Dobias Iskandar | B7: 55H-02411-GM05 | C7: SM | D7: 2358.85
A8: Peter Pramana | B8: 55H-02411-GM06 | C8: SM | D8: 221.7
A9: Herman Herry Adranacus | B9: 55H-02411-GM07 | C9: SM | D9: 19714.51
A10: Thiha Aung | B10: 55H-02411-GM08 | C10: SM | D10: 14399.5
A11: Adex Yudiswan | B11: 55H-02411-GM09 | C11: SM | D11: 3349.69
A12: Muljadi Tjahjono | B12: 55H-02411-GM10 | C12: SM | D12: 49798.7
A13: Vino Romano | B13: 55H-02411-GM11 | C13: SM | D13: 888.75
A14: Aboe Bakar | B14: 55H-02411-GM12 | C14: SM | D14: 3643.85
A15: Agus Adrianto | B15: 55H-02411-GM13 | C15: SM | D15: 20292.85
A16: Erlin Diyanto Hong | B16: 55H-02411-GM14 | C16: SM | D16: 3080.85 | E16: 7266000
A17: Agung Yadha Adhi Nugraha | B17: 55H-02411-GM15 | C17: SM | D17: 1689.61
A18: Herly Julianti | B18: 55H-02411-GM16 | C18: SM | D18: 49798.7
A19: Ahnar Magenda | B19: 55H-02411-GM17 | C19: SBL | D19: 24337.57
C20: Total: | D20: =SUM(D4:D19) -> 198372.17 | E20: =SUM(E4:E19) -> 7266000

Sheet Vino
A3: Invoice: 55H-02411-GM11
A4: 18.11.2024
A9: Mrs. Vino Romano
A10: Jakarta
A11: Indonesia
A14: Description | B14: Qty | C14: Price | D14: Amount
A15: Patient: Vino Romano, M, 11.11.1988
A17: Fetusan | B17: 5 | C17: =IFERROR(VLOOKUP(A17,'Services-Produits'!$A$1:$B$2000,2,FALSE),"") -> 42.75 | D17: =IFERROR(B17*C17,"") -> 213.75
A18: Tadalafil-Mepha 2.5 mg | B18: 4 | C18: =IFERROR(VLOOKUP(A18,'Services-Produits'!$A$1:$B$2000,2,FALSE),"") -> 115 | D18: =IFERROR(B18*C18,"") -> 460
A19: Cholin Inject | B19: 5 | C19: =IFERROR(VLOOKUP(A19,'Services-Produits'!$A$1:$B$2000,2,FALSE),"") -> 43 | D19: 215
C20: =IFERROR(VLOOKUP(A20,'Services-Produits'!$A$1:$B$2000,2,FALSE),"") -> 
C21: =IFERROR(VLOOKUP(A21,'Services-Produits'!$A$1:$B$2000,2,FALSE),"") -> 
C22: =IFERROR(VLOOKUP(A22,'Services-Produits'!$A$1:$B$2000,2,FALSE),"") -> 
C23: =IFERROR(VLOOKUP(A23,'Services-Produits'!$A$1:$B$2000,2,FALSE),"") -> 
C24: =IFERROR(VLOOKUP(A24,'Services-Produits'!$A$1:$B$2000,2,FALSE),"") -> 
C25: =IFERROR(VLOOKUP(A25,'Services-Produits'!$A$1:$B$2000,2,FALSE),"") -> 
C26: =IFERROR(VLOOKUP(A26,'Services-Produits'!$A$1:$B$2000,2,FALSE),"") -> 
C27: =IFERROR(VLOOKUP(A27,'Services-Produits'!$A$1:$B$2000,2,FALSE),"") -> 
C28: =IFERROR(VLOOKUP(A28,'Services-Produits'!$A$1:$B$2000,2,FALSE),"") -> 
C29: =IFERROR(VLOOKUP(A29,'Services-Produits'!$A$1:$B$2000,2,FALSE),"") -> 
C30: =IFERROR(VLOOKUP(A30,'Services-Produits'!$A$1:$B$2000,2,FALSE),"") -> 
C31: =IFERROR(VLOOKUP(A31,'Services-Produits'!$A$1:$B$2000,2,FALSE),"") -> 
C32: =IFERROR(VLOOKUP(A32,'Services-Produits'!$A$1:$B$2000,2,FALSE),"") -> 
C33: =IFERROR(VLOOKUP(A33,'Services-Produits'!$A$1:$B$2000,2,FALSE),"") -> 
C34: =IFERROR(VLOOKUP(A34,'Services-Produits'!$A$1:$B$2000,2,FALSE),"") -> 
C35: =IFERROR(VLOOKUP(A35,'Services-Produits'!$A$1:$B$2000,2,FALSE),"") -> 
C36: =IFERROR(VLOOKUP(A36,'Services-Produits'!$A$1:$B$2000,2,FALSE),"") -> 
C37: =IFERROR(VLOOKUP(A37,'Services-Produits'!$A$1:$B$2000,2,FALSE),"") -> 
A38: Total in CHF | D38: =SUM(D17:D37) -> 888.75
A40: Thank you very much for your trust!

Sheet Aboe Bakar-1
A3: Invoice: 55H-02411-GM12
A4: 18.11.2024
A9: Mr. Aboe Bakar
A10: Jakarta
A11: Indonesia
A14: Description | B14: Qty | C14: Price | D14: Amount
A15: Patient: Aboe Bakar, M, 15.10.1969
A17: Skin Emulsion Swiss Microbiome | B17: 3 | C17: =IFERROR(VLOOKUP(A17,'Services-Produits'!$A$1:$B$2000,2,FALSE),"") -> 58.25 | D17: =IFERROR(B17*C17,"") -> 174.75
A18: Rich Lotion Swiss Microbiome | B18: 1 | C18: =IFERROR(VLOOKUP(A18,'Services-Produits'!$A$1:$B$2000,2,FALSE),"") -> 68.85 | D18: =IFERROR(B18*C18,"") -> 68.85
A19: Antioxidant Infusion | B19: 2 | C19: =IFERROR(VLOOKUP(A19,'Services-Produits'!$A$1:$B$2000,2,FALSE),"") -> 410 | D19: 820
A20: Diabetische Polyneuropathie | B20: 2 | C20: =IFERROR(VLOOKUP(A20,'Services-Produits'!$A$1:$B$2000,2,FALSE),"") -> 347.65 | D20: 695.3
A21: Hydroxiprolin 2 g | B21: 3 | C21: =IFERROR(VLOOKUP(A21,'Services-Produits'!$A$1:$B$2000,2,FALSE),"") -> 68.9 | D21: 206.7
A22: Centricor forte | B22: 1 | C22: =IFERROR(VLOOKUP(A22,'Services-Produits'!$A$1:$B$2000,2,FALSE),"") -> 11.7 | D22: 11.7
A23: Vitarubine | B23: 1 | C23: =IFERROR(VLOOKUP(A23,'Services-Produits'!$A$1:$B$2000,2,FALSE),"") -> 25.5 | D23: 25.5
A24: Omnibiotic | B24: 1 | C24: =IFERROR(VLOOKUP(A24,'Services-Produits'!$A$1:$B$2000,2,FALSE),"") -> 57.6 | D24: 57.6
A25: Erbasit | B25: 1 | C25: =IFERROR(VLOOKUP(A25,'Services-Produits'!$A$1:$B$2000,2,FALSE),"") -> 30.9 | D25: 30.9
A26: Shoga Öl | B26: 2 | C26: =IFERROR(VLOOKUP(A26,'Services-Produits'!$A$1:$B$2000,2,FALSE),"") -> 670 | D26: 1340
A27: Biotin | B27: 5 | C27: =IFERROR(VLOOKUP(A27,'Services-Produits'!$A$1:$B$2000,2,FALSE),"") -> 37.25 | D27: 186.25
A28: Vit D3 Streuli | B28: 1 | C28: =IFERROR(VLOOKUP(A28,'Services-Produits'!$A$1:$B$2000,2,FALSE),"") -> 26.3 | D28: 26.3
C29: =IFERROR(VLOOKUP(A29,'Services-Produits'!$A$1:$B$2000,2,FALSE),"") -> 
C30: =IFERROR(VLOOKUP(A30,'Services-Produits'!$A$1:$B$2000,2,FALSE),"") -> 
C31: =IFERROR(VLOOKUP(A31,'Services-Produits'!$A$1:$B$2000,2,FALSE),"") -> 
C32: =IFERROR(VLOOKUP(A32,'Services-Produits'!$A$1:$B$2000,2,FALSE),"") -> 
C33: =IFERROR(VLOOKUP(A33,'Services-Produits'!$A$1:$B$2000,2,FALSE),"") -> 
C34: =IFERROR(VLOOKUP(A34,'Services-Produits'!$A$1:$B$2000,2,FALSE),"") -> 
C35: =IFERROR(VLOOKUP(A35,'Services-Produits'!$A$1:$B$2000,2,FALSE),"") -> 
C36: =IFERROR(VLOOKUP(A36,'Services-Produits'!$A$1:$B$2000,2,FALSE),"") -> 
C37: =IFERROR(VLOOKUP(A37,'Services-Produits'!$A$1:$B$2000,2,FALSE),"") -> 
A38: Total in CHF | D38: =SUM(D17:D37) -> 3643.85
A40: Thank you very much for your trust!

Sheet Agus Andriyanto
A3: Invoice: 55H-02411-GM13
A4: 18.11.2024
A9: Mr. Agus Andriyanto
A10: Jakarta
A11: Indonesia
A14: Description | B14: Qty | C14: Price | D14: Amount
A15: Patient: Agus Andriyanto, M, 16.02.1967
A17: Gut Microbiome 2 transplants | B17: 1 | C17: =IFERROR(VLOOKUP(A17,'Services-Produits'!$A$1:$B$2000,2,FALSE),"") -> 14399.5 | D17: =IFERROR(B17*C17,"") -> 14399.5
A18: Mitochondrien Infusion | B18: 2 | C18: =IFERROR(VLOOKUP(A18,'Services-Produits'!$A$1:$B$2000,2,FALSE),"") -> 428.7 | D18: =IFERROR(B18*C18,"") -> 857.4
A19: Skin Emulsion Swiss Microbiome | B19: 3 | C19: =IFERROR(VLOOKUP(A19,'Services-Produits'!$A$1:$B$2000,2,FALSE),"") -> 58.25 | D19: 174.75
A20: Vit D3 Streuli | B20: 3 | C20: =IFERROR(VLOOKUP(A20,'Services-Produits'!$A$1:$B$2000,2,FALSE),"") -> 26.3 | D20: 78.9
A21: hADSC dispatch QTY 5.000.000 released 28.10.23 | B21: 1 | C21: =IFERROR(VLOOKUP(A21,'Services-Produits'!$A$1:$B$2000,2,FALSE),"") -> 4782.3 | D21: 4782.3
C22: =IFERROR(VLOOKUP(A22,'Services-Produits'!$A$1:$B$2000,2,FALSE),"") -> 
C23: =IFERROR(VLOOKUP(A23,'Services-Produits'!$A$1:$B$2000,2,FALSE),"") -> 
C24: =IFERROR(VLOOKUP(A24,'Services-Produits'!$A$1:$B$2000,2,FALSE),"") -> 
C25: =IFERROR(VLOOKUP(A25,'Services-Produits'!$A$1:$B$2000,2,FALSE),"") -> 
C26: =IFERROR(VLOOKUP(A26,'Services-Produits'!$A$1:$B$2000,2,FALSE),"") -> 
C27: =IFERROR(VLOOKUP(A27,'Services-Produits'!$A$1:$B$2000,2,FALSE),"") -> 
C28: =IFERROR(VLOOKUP(A28,'Services-Produits'!$A$1:$B$2000,2,FALSE),"") -> 
C29: =IFERROR(VLOOKUP(A29,'Services-Produits'!$A$1:$B$2000,2,FALSE),"") -> 
C30: =IFERROR(VLOOKUP(A30,'Services-Produits'!$A$1:$B$2000,2,FALSE),"") -> 
C31: =IFERROR(VLOOKUP(A31,'Services-Produits'!$A$1:$B$2000,2,FALSE),"") -> 
C32: =IFERROR(VLOOKUP(A32,'Services-Produits'!$A$1:$B$2000,2,FALSE),"") -> 
C33: =IFERROR(VLOOKUP(A33,'Services-Produits'!$A$1:$B$2000,2,FALSE),"") -> 
C34: =IFERROR(VLOOKUP(A34,'Services-Produits'!$A$1:$B$2000,2,FALSE),"") -> 
C35: =IFERROR(VLOOKUP(A35,'Services-Produits'!$A$1:$B$2000,2,FALSE),"") -> 
C36: =IFERROR(VLOOKUP(A36,'Services-Produits'!$A$1:$B$2000,2,FALSE),"") -> 
C37: =IFERROR(VLOOKUP(A37,'Services-Produits'!$A$1:$B$2000,2,FALSE),"") -> 
A38: Total in CHF | D38: =SUM(D17:D37) -> 20292.85
A40: Thank you very much for your trust!

Sheet Erlin Diyanto Hong
A3: Invoice: 55H-02411-GM14
A4: 18.11.2024
A9: Mrs. Erlin Diyanto Hong
A10: Jakarta
A11: Indonesia
A14: Description | B14: Qty | C14: Price | D14: Amount
A15: Patient: Erlin Diyanto Hong, F, 20.11.1979
A17: Omega 7 | B17: 2 | C17: =IFERROR(VLOOKUP(A17,'Services-Produits'!$A$1:$B$2000,2,FALSE),"") -> 82.6 | D17: =IFERROR(B17*C17,"") -> 165.2
A18: Diabetische Polyneuropathie | B18: 2 | C18: =IFERROR(VLOOKUP(A18,'Services-Produits'!$A$1:$B$2000,2,FALSE),"") -> 347.65 | D18: =IFERROR(B18*C18,"") -> 695.3
A19: Vit D3 Streuli | B19: 1 | C19: =IFERROR(VLOOKUP(A19,'Services-Produits'!$A$1:$B$2000,2,FALSE),"") -> 26.3 | D19: 26.3
A20: Gynofit | B20: 1 | C20: =IFERROR(VLOOKUP(A20,'Services-Produits'!$A$1:$B$2000,2,FALSE),"") -> 29.35 | D20: 29.35
A21: Phenylalanine | B21: 3 | C21: =IFERROR(VLOOKUP(A21,'Services-Produits'!$A$1:$B$2000,2,FALSE),"") -> 106.4 | D21: 319.2
A22: Wegovy 0.25 mg | B22: 1 | C22: =IFERROR(VLOOKUP(A22,'Services-Produits'!$A$1:$B$2000,2,FALSE),"") -> 178.95 | D22: 178.95
A23: Curcumin 150 mg | B23: 3 | C23: =IFERROR(VLOOKUP(A23,'Services-Produits'!$A$1:$B$2000,2,FALSE),"") -> 229.2 | D23: 687.6
A24: Antioxidant Infusion | B24: 2 | C24: =IFERROR(VLOOKUP(A24,'Services-Produits'!$A$1:$B$2000,2,FALSE),"") -> 410 | D24: 820
A25: Hydroxiprolin 2 g | B25: 2 | C25: =IFERROR(VLOOKUP(A25,'Services-Produits'!$A$1:$B$2000,2,FALSE),"") -> 68.9 | D25: 137.8
A26: L-Carnitin | B26: 1 | C26: =IFERROR(VLOOKUP(A26,'Services-Produits'!$A$1:$B$2000,2,FALSE),"") -> 21.15 | D26: 21.15
C27: =IFERROR(VLOOKUP(A27,'Services-Produits'!$A$1:$B$2000,2,FALSE),"") -> 
C28: =IFERROR(VLOOKUP(A28,'Services-Produits'!$A$1:$B$2000,2,FALSE),"") -> 
A29: Skin Emulsion SM | B29: 2 | C29: =IFERROR(VLOOKUP(A29,'Services-Produits'!$A$1:$B$2000,2,FALSE),"") -> 1039500 | D29: 2079000
A30: Skin Serum SM | B30: 2 | C30: =IFERROR(VLOOKUP(A30,'Services-Produits'!$A$1:$B$2000,2,FALSE),"") -> 1365000 | D30: 2730000
A31: Rich Lotion SM | B31: 2 | C31: =IFERROR(VLOOKUP(A31,'Services-Produits'!$A$1:$B$2000,2,FALSE),"") -> 1228500 | D31: 2457000
C32: =IFERROR(VLOOKUP(A32,'Services-Produits'!$A$1:$B$2000,2,FALSE),"") -> 
C33: =IFERROR(VLOOKUP(A33,'Services-Produits'!$A$1:$B$2000,2,FALSE),"") -> 
C34: =IFERROR(VLOOKUP(A34,'Services-Produits'!$A$1:$B$2000,2,FALSE),"") -> 
C35: =IFERROR(VLOOKUP(A35,'Services-Produits'!$A$1:$B$2000,2,FALSE),"") -> 
C36: =IFERROR(VLOOKUP(A36,'Services-Produits'!$A$1:$B$2000,2,FALSE),"") -> 
C37: =IFERROR(VLOOKUP(A37,'Services-Produits'!$A$1:$B$2000,2,FALSE),"") -> 
A38: Total in CHF | D38: =SUM(D17:D26) -> 3080.85
A39: Total in IDR | D39: =SUM(D29:D31) -> 7266000
A41: Thank you very much for your trust!

Sheet Aqung Yadha Adhi Nuqraha
A3: Invoice: 55H-02411-GM15
A4: 18.11.2024
A9: Mr. Agung Yadha Adhi Nuqraha
A10: Jakarta
A11: Indonesia
A14: Description | B14: Qty | C14: Price | D14: Amount
A15: Patient: Agung Yadha Adhi Nuqraha, M, 29.06.1981
A17: Rhodiola | B17: 1 | C17: =IFERROR(VLOOKUP(A17,'Services-Produits'!$A$1:$B$2000,2,FALSE),"") -> 33.45 | D17: =IFERROR(B17*C17,"") -> 33.45
A18: ADEK | B18: 1 | C18: =IFERROR(VLOOKUP(A18,'Services-Produits'!$A$1:$B$2000,2,FALSE),"") -> 37.6 | D18: =IFERROR(B18*C18,"") -> 37.6
A19: NAD+ | B19: 1 | C19: =IFERROR(VLOOKUP(A19,'Services-Produits'!$A$1:$B$2000,2,FALSE),"") -> 
A20: Antioxidant Infusion | B20: 1 | C20: =IFERROR(VLOOKUP(A20,'Services-Produits'!$A$1:$B$2000,2,FALSE),"") -> 410 | D20: 410
A21: Mitochondrien Infusion | B21: 1 | C21: =IFERROR(VLOOKUP(A21,'Services-Produits'!$A$1:$B$2000,2,FALSE),"") -> 428.7 | D21: 428.7
A22: Skin Serum Swiss Microbiome | B22: 4 | C22: =IFERROR(VLOOKUP(A22,'Services-Produits'!$A$1:$B$2000,2,FALSE),"") -> 76.5 | D22: 306
A23: Skin Emulsion Swiss Microbiome | B23: 2 | C23: =IFERROR(VLOOKUP(A23,'Services-Produits'!$A$1:$B$2000,2,FALSE),"") -> 58.25 | D23: 116.5
A24: Rich Lotion Swiss Microbiome | B24: 2 | C24: =IFERROR(VLOOKUP(A24,'Services-Produits'!$A$1:$B$2000,2,FALSE),"") -> 68.85 | D24: 137.7
C25: =IFERROR(VLOOKUP(A25,'Services-Produits'!$A$1:$B$2000,2,FALSE),"") -> 
C26: =IFERROR(VLOOKUP(A26,'Services-Produits'!$A$1:$B$2000,2,FALSE),"") -> 
C27: =IFERROR(VLOOKUP(A27,'Services-Produits'!$A$1:$B$2000,2,FALSE),"") -> 
C28: =IFERROR(VLOOKUP(A28,'Services-Produits'!$A$1:$B$2000,2,FALSE),"") -> 
C29: =IFERROR(VLOOKUP(A29,'Services-Produits'!$A$1:$B$2000,2,FALSE),"") -> 
C30: =IFERROR(VLOOKUP(A30,'Services-Produits'!$A$1:$B$2000,2,FALSE),"") -> 
C31: =IFERROR(VLOOKUP(A31,'Services-Produits'!$A$1:$B$2000,2,FALSE),"") -> 
C32: =IFERROR(VLOOKUP(A32,'Services-Produits'!$A$1:$B$2000,2,FALSE),"") -> 
C33: =IFERROR(VLOOKUP(A33,'Services-Produits'!$A$1:$B$2000,2,FALSE),"") -> 
C34: =IFERROR(VLOOKUP(A34,'Services-Produits'!$A$1:$B$2000,2,FALSE),"") -> 
C35: =IFERROR(VLOOKUP(A35,'Services-Produits'!$A$1:$B$2000,2,FALSE),"") -> 
C36: =IFERROR(VLOOKUP(A36,'Services-Produits'!$A$1:$B$2000,2,FALSE),"") -> 
C37: =IFERROR(VLOOKUP(A37,'Services-Produits'!$A$1:$B$2000,2,FALSE),"") -> 
A38: Total in CHF | D38: =SUM(D17:D37) -> 1469.95
A40: Thank you very much for your trust!

Sheet ReferenceSBL
A3: Invoice: 55H-02411-GM02
A4: 18.11.2024
A10: Mrs. Yenni Rista
A11: Jakarta
A12: Indonesia
A14: Description | B14: Qty | C14: Price | D14: Amount
A15: Patient: Yenni Rista, F, 18.07.1958
C17: =IFERROR(VLOOKUP(A17,'Services-Produits'!$A$1:$B$2000,2,FALSE),"") ->  | D17: =IFERROR(B17*C17,"") -> 
C18: =IFERROR(VLOOKUP(A18,'Services-Produits'!$A$1:$B$2000,2,FALSE),"") ->  | D18: =IFERROR(B18*C18,"") -> 
C19: =IFERROR(VLOOKUP(A19,'Services-Produits'!$A$1:$B$2000,2,FALSE),"") -> 
C20: =IFERROR(VLOOKUP(A20,'Services-Produits'!$A$1:$B$2000,2,FALSE),"") -> 
C21: =IFERROR(VLOOKUP(A21,'Services-Produits'!$A$1:$B$2000,2,FALSE),"") -> 
C22: =IFERROR(VLOOKUP(A22,'Services-Produits'!$A$1:$B$2000,2,FALSE),"") -> 
C23: =IFERROR(VLOOKUP(A23,'Services-Produits'!$A$1:$B$2000,2,FALSE),"") -> 
C24: =IFERROR(VLOOKUP(A24,'Services-Produits'!$A$1:$B$2000,2,FALSE),"") -> 
C25: =IFERROR(VLOOKUP(A25,'Services-Produits'!$A$1:$B$2000,2,FALSE),"") -> 
C26: =IFERROR(VLOOKUP(A26,'Services-Produits'!$A$1:$B$2000,2,FALSE),"") -> 
C27: =IFERROR(VLOOKUP(A27,'Services-Produits'!$A$1:$B$2000,2,FALSE),"") -> 
C28: =IFERROR(VLOOKUP(A28,'Services-Produits'!$A$1:$B$2000,2,FALSE),"") -> 
C29: =IFERROR(VLOOKUP(A29,'Services-Produits'!$A$1:$B$2000,2,FALSE),"") -> 
C30: =IFERROR(VLOOKUP(A30,'Services-Produits'!$A$1:$B$2000,2,FALSE),"") -> 
C31: =IFERROR(VLOOKUP(A31,'Services-Produits'!$A$1:$B$2000,2,FALSE),"") -> 
C32: =IFERROR(VLOOKUP(A32,'Services-Produits'!$A$1:$B$2000,2,FALSE),"") -> 
C33: =IFERROR(VLOOKUP(A33,'Services-Produits'!$A$1:$B$2000,2,FALSE),"") -> 
C34: =IFERROR(VLOOKUP(A34,'Services-Produits'!$A$1:$B$2000,2,FALSE),"") -> 
C35: =IFERROR(VLOOKUP(A35,'Services-Produits'!$A$1:$B$2000,2,FALSE),"") -> 
C36: =IFERROR(VLOOKUP(A36,'Services-Produits'!$A$1:$B$2000,2,FALSE),"") -> 
C37: =IFERROR(VLOOKUP(A37,'Services-Produits'!$A$1:$B$2000,2,FALSE),"") -> 
A38: Total in CHF | D38: =SUM(D17:D37) -> 0
A40: Thank you very much for your trust!

Sheet Services-Produits
A1: Produit | B1: Price | C1: Old price
A2: Respiphage | B2: 419.5
A3: Abbott Freestyle 2 | B3: 91.4
A4: Abbott Sensor | B4: 65.3
A5: ADEK | B5: 37.6
A6: Ampuwa 10 ml | B6: 0
A7: Anesthesie
A8: Antioxidant Infusion | B8: 410
A9: Antioxidant Mix | B9: 410
A10: Artesunat | B10: 67.2
A11: Bactoflor | B11: 69.8
A12: Beloc Zok 25 mg | B12: 16.5
A13: Bioflorin | B13: 18.35
A14: Biotin | B14: 37.25
A15: Biotin + NaCl | B15: 37.25
A16: B-Kompleks | B16: 46.8
A17: Black cumin capsules | B17: 34.8
A18: Bosvene Akba | B18: 215.11
A19: Brain Mapping | B19: 2148
A20: Calcium gluconat | B20: 22.6
A21: Cell banking 10 years
A22: Centricor forte | B22: 11.7
A23: Cerebrolysin 10 ml | B23: 99.6
A24: Cerebrolysin 10 ml | B24: 99.6
A25: Cerebrolysin 5 ml | B25: 63.8
A26: Cholin Inject | B26: 43
A27: C-Intercell 650 mg Vitamin C, 90 Kapseln | B27: 27.99
A28: Consultation | B28: 1800
A29: Consultation & Report Complimentary | B29: 0
A30: Consultation Complimentary | B30: 0
A31: Creon 25000 | B31: 111.75
A32: Curcumin + NaCl 0,9% | B32: 116.22
A33: Curcumin 150 mg | B33: 229.2
A34: Curcumin 75 mg | B34: 116.22
A35: Cyspera | B35: 168
A36: Darmflorin | B36: 25.45
A37: DCA | B37: 57
A38: Deposit for medical treatment | B38: 32215 | C38: 70000
A39: Diabetische Polyneuropathie | B39: 347.65
A40: Discount 15%
A41: Dr. Markus Puetz 29.05.24 - 31.05.24 | B41: 505.7
A42: Dr. Roger Gmuer 20.09.24 | B42: 965.55
A43: Dr. Roland Backhaus
A44: EEG & EKG | B44: 1860
A45: E-Inject | B45: 41.2
A46: Epinativ Injection | B46: 133.61
A47: Epinative | B47: 275.4
A48: Erbasit | B48: 30.9
A49: Face treatment Chin contouring | B49: 600
A50: Facial contouring
A51: Faktu | B51: 8.7
A52: Famotidin | B52: 57.2
A53: Fermanose | B53: 46.2
A54: Fetusan | B54: 42.75
A55: Fiber-Intercell | B55: 40.49
A56: Flatulex | B56: 8.85
A57: Full check up & screening | B57: 1870
A58: Full check up & screening, vascular, heart, thyroid & abdomen | B58: 2380
A59: Full check up & screening, vascular, heart, thyroid, brain mapping & Abdomen | B59: 2148
A60: Full check ups | B60: 1870
A61: Full check ups & screenings | B61: 1870
A62: Gedächtnis Infusion | B62: 378
A63: Genetik test | B63: 2686.5
A64: Glutathion red. Injekt | B64: 62
A65: Gut Microbiome - 1 transplants | B65: 7199.75
A66: Gut Microbiome 2 transplants | B66: 14399.5
A67: Gut Microbiome 3 transplants | B67: 21599.25
A68: Gut Microbiome 4 transplants | B68: 28799
A69: Gut Microbiome Therapy | B69: 6912.5
A70: Gynecology treatment 30.05.24 - 17.06.24 | B70: 1972.15
A71: Gynofit | B71: 29.35
A72: Gynophilus | B72: 19.8
A73: Gynopholus | B73: 19.7
A74: Gynophylus | B74: 19.8
A75: hADSC cell released QTY 5.000.000 released 28.10.23
A76: hADSC dispatch QTY 5.000.000 released 28.10.23 | B76: 4782.3
A77: hADSC processing
A78: Hair & organ rejuvenation
A79: Hepar | B79: 43.7
A80: Hydroxiprolin 2 g | B80: 68.9
A81: Hypericin 5 mg | B81: 218.8 | C81: 198.7
A82: Iberogast | B82: 22.2
A83: Immun Akut | B83: 66.25
A84: Immunocare | B84: 220
A85: Immunocare personalised Budi Gunawan 4 months | B85: 1207.35
A86: Immunocare personalised Sudarti 4 months | B86: 1108.65
A87: Immunocare, personalised | B87: 195.7
A88: Infraorbital | B88: 600
A89: Infusion: Curcumin 75 mg | B89: 116.22
A90: Infusion: Nicotiamide | B90: 179.8
A91: Infusions
A92: Jantung (Herz) | B92: 584.5
A93: K2 & D3 | B93: 34.7
A94: Kantong kemih (Harnblase) | B94: 381.35
A95: Kiki Redjeki Treatment by Dr. Markus Pütz | B95: 505.7
A96: Laetia | B96: 45.3
A97: L-Carnitin | B97: 21.15
A98: Lipoaspiration
A99: Liserotota | B99: 345.3
A100: Liv 52 | B100: 14.9
A101: Liver Detox Liv.52 | B101: 21
A102: Lubex 150 ml | B102: 11.65
A103: Lubex 500 ml | B103: 29.55
A104: Magentropfen | B104: 23
A105: Magnesium | B105: 39.1 | C105: 25.45
A106: Magnesium 1000 mg | B106: 34.68
A107: Magnesium Intercell | B107: 15.1
A108: Memoserin 90 Kapseln | B108: 67.7
A109: Microbiome | B109: 74.95
A110: Microbiome body lotion | B110: 29.9
A111: Microbiome therapy 2 transplants | B111: 7199.75
A112: Microcare 4 months | B112: 571.05
A113: Microcare immuno strong | B113: 280
A114: Microcare personalised | B114: 799.4
A115: Microniome face serum | B115: 69.9
A116: Mitochondrien | B116: 428.7
A117: Mitochondrien Infusion | B117: 428.7
A118: Mitochondrien Mix Infusion | B118: 428.7
A119: Muskulatur (Otot) | B119: 286.4
A120: NAD+ 125 mg | B120: 219.66
A121: Neuro Amino | B121: 87.5 | C121: 163.2
A122: Neuropathy | B122: 347.65
A123: Nicotiamide | B123: 47
A124: Nicotinamide | B124: 47 | C124: 179.8
A125: NMN, Rapamune, Sildenafil & Tadalafil | B125: 67.8
A126: Oliphenolia | B126: 183.51
A127: Oliphenolia + NaCl 0,9% 150 ml | B127: 183.51
A128: Omega 3 | B128: 58.3 | C128: 51.9
A129: Omega 7 | B129: 82.6
A130: Omega 7.0 | B130: 81.35
A131: Omnibiotic | B131: 57.6
A132: Oregano oil | B132: 21.4
A133: Otak kecil (Kleinhirn) | B133: 288
A134: Ozempic | B134: 120.5 | C134: 129.8
A135: Pantoprazol | B135: 17.5
A136: Phago PYO | B136: 119.5
A137: Phago SES | B137: 119.5
A138: Phenylalanine | B138: 106.4
A139: Phospolipide | B139: 31.28
A140: Plavix | B140: 93.7
A141: Polineurophathy | B141: 347.65
A142: Prodigest | B142: 72.35
A143: Protokol Lösung 1 Infusion | B143: 79
A144: PRP
A145: Q10 i.v. sensitive | B145: 178.8
A146: Raab Flohsamen | B146: 14.85
A147: Reservatrol + NaCl 0,9% 300 ml | B147: 178
A148: Resveratrol | B148: 178
A149: Rhodiola | B149: 33.45
A150: Riboflavin | B150: 127.4
A151: Rich Lotion SM | B151: 1228500
A152: Rich Lotion Swiss Microbiome | B152: 68.85
A153: Riopan | B153: 32.4
A154: RNA | B154: 516.7
A155: RNA Auge | B155: 384.45
A156: RNA Heart | B156: 584.5 | C156: 516.7
A157: RNA Hepar | B157: 374.8
A158: RNA Injections 4 vials | B158: 516.7
A159: RNA Lunge | B159: 381.2
A160: RNA Retina | B160: 417
A161: RNA Thymus | B161: 185.7 | C161: 516.7
A162: Salvans | B162: 13.05
A163: Schwarzkümmel | B163: 39
A164: Screenings Vascular, heart, thyroid & Abdomen | B164: 2870
A165: Selenase | B165: 175
A166: Selenium | B166: 20.28 | C166: 41.6
A167: Senolytics mixture | B167: 670
A168: Senolytics Mixture | B168: 670
A169: Shipping | B169: 41.35
A170: Shoga Öl | B170: 670
A171: Skin Emulsion SM | B171: 1039500
A172: Skin Emulsion Swiss Microbiome | B172: 58.25
A173: Skin Serum SM | B173: 1365000
A174: Skin Serum Swiss Microbiome | B174: 76.5
A175: Spermidin | B175: 182.35
A176: SSCells Biotech released - 8 Syringes | B176: 9748
A177: Stem cell treatment | B177: 49370
A178: Stemcell
A179: Sulgan | B179: 26.7
A180: SVF transplant
A181: Tadalafil-Mepha 10 mg | B181: 115
A182: Tadalafil-Mepha 2.5 mg | B182: 115
A183: Tadalafil-Mepha 5 mg | B183: 115
A184: Tambocor 100 mg | B184: 55.75
A185: Tamsulosin Retard | B185: 59.58
A186: Taurin 2g | B186: 21.7
A187: Testicle | B187: 372.45
A188: Thymus | B188: 516.7
A189: USG: Vascular, Thyroid & Abdomen | B189: 1480
A190: USZ
A191: Vascular, Heart, Thyroid & Abdomen | B191: 2380
A192: Ventrisana | B192: 19.2
A193: Vistabel 3 zones | B193: 750
A194: Vit B12 | B194: 10
A195: Vit B12 Zentivu | B195: 25.5
A196: Vit C | B196: 42.7 | C196: 27.99
A197: Vit C Burg Apotheke | B197: 23.5
A198: Vit C Streuli | B198: 30.4
A199: Vit D3 | B199: 37
A200: Vit D3 | B200: 29.8
... 28 more rows

Sheet Reference
A3: Invoice: 55H-02411-GM04
A4: 20.12.2024
A14: Description | B14: Qty | C14: Price | D14: Amount
C17: =IFERROR(VLOOKUP(A17,'Services-Produits'!$A$1:$B$2000,2,FALSE),"") ->  | D17: =IFERROR(B17*C17,"") -> 
C18: =IFERROR(VLOOKUP(A18,'Services-Produits'!$A$1:$B$2000,2,FALSE),"") ->  | D18: =IFERROR(B18*C18,"") -> 
C19: =IFERROR(VLOOKUP(A19,'Services-Produits'!$A$1:$B$2000,2,FALSE),"") -> 
C20: =IFERROR(VLOOKUP(A20,'Services-Produits'!$A$1:$B$2000,2,FALSE),"") -> 
C21: =IFERROR(VLOOKUP(A21,'Services-Produits'!$A$1:$B$2000,2,FALSE),"") -> 
C22: =IFERROR(VLOOKUP(A22,'Services-Produits'!$A$1:$B$2000,2,FALSE),"") -> 
C23: =IFERROR(VLOOKUP(A23,'Services-Produits'!$A$1:$B$2000,2,FALSE),"") -> 
C24: =IFERROR(VLOOKUP(A24,'Services-Produits'!$A$1:$B$2000,2,FALSE),"") -> 
C25: =IFERROR(VLOOKUP(A25,'Services-Produits'!$A$1:$B$2000,2,FALSE),"") -> 
C26: =IFERROR(VLOOKUP(A26,'Services-Produits'!$A$1:$B$2000,2,FALSE),"") -> 
C27: =IFERROR(VLOOKUP(A27,'Services-Produits'!$A$1:$B$2000,2,FALSE),"") -> 
C28: =IFERROR(VLOOKUP(A28,'Services-Produits'!$A$1:$B$2000,2,FALSE),"") -> 
C29: =IFERROR(VLOOKUP(A29,'Services-Produits'!$A$1:$B$2000,2,FALSE),"") -> 
C30: =IFERROR(VLOOKUP(A30,'Services-Produits'!$A$1:$B$2000,2,FALSE),"") -> 
C31: =IFERROR(VLOOKUP(A31,'Services-Produits'!$A$1:$B$2000,2,FALSE),"") -> 
C32: =IFERROR(VLOOKUP(A32,'Services-Produits'!$A$1:$B$2000,2,FALSE),"") -> 
C33: =IFERROR(VLOOKUP(A33,'Services-Produits'!$A$1:$B$2000,2,FALSE),"") -> 
C34: =IFERROR(VLOOKUP(A34,'Services-Produits'!$A$1:$B$2000,2,FALSE),"") -> 
C35: =IFERROR(VLOOKUP(A35,'Services-Produits'!$A$1:$B$2000,2,FALSE),"") -> 
C36: =IFERROR(VLOOKUP(A36,'Services-Produits'!$A$1:$B$2000,2,FALSE),"") -> 
C37: =IFERROR(VLOOKUP(A37,'Services-Produits'!$A$1:$B$2000,2,FALSE),"") -> 
A38: Total in CHF | D38: =SUM(D17:D37) -> 0
A40: Thank you very much for your trust!

Sheet Patients
A1: Nom | B1: Adresse | C1: CP | D1: Ville | E1: Pays | F1: Sexe | G1: Date Naissance | H1: Entreprise
A2: Aboe Bakar | D2: Jakarta | E2: Indonesia | F2: M | G2: 1969-10-15 | H2: SM
A3: Adex Yudiswan | D3: Jakarta | E3: Indonesia | F3: M | G3: 1974-12-03 | H3: SM
A4: Adex Yudiswan | D4: Jakarta | E4: Indonesia | F4: M | G4: 1974-12-01 | H4: SM | L4: Discount5 | M4: -0.05
A5: Agus Andriyanto | D5: Jakarta | E5: Indonesia | F5: M | G5: 1967-02-16 | H5: SM | L5: Discount10 | M5: -0.1
A6: Almahyra Cyrilla Sastroisvara | D6: Jakarta | E6: Indonesia | F6: F | L6: Discount15 | M6: -0.15
A7: Andrea Wulandari Iravan | D7: Jakarta | E7: Indonesia | F7: F | G7: 1995-08-07 | H7: N | L7: Discount20 | M7: -0.2
A8: Agung Yadha Adhi Nuqraha | D8: Jakarta | E8: Indonesia | F8: M | G8: 1981-06-29 | H8: SM | L8: Discount25 | M8: -0.25
A9: Armand Wahyudi Hartono | D9: Jakarta | E9: Indonesia | F9: M | G9: 1975-05-20 | H9: SM | L9: Discount30 | M9: -0.3
A10: Budi Satrio | D10: Jakarta | E10: Indonesia | F10: M | G10: 1976-05-31 | H10: SBL | L10: Discount35 | M10: -0.35
A11: Chan Choi Moi | D11: Jakarta | E11: Indonesia | F11: F | G11: 1972-04-28 | H11: SM | L11: Discount40 | M11: -0.4
A12: Darmo Pranoto Soenjoto | D12: Jakarta | E12: Indonesia | F12: M | G12: 1946-06-20 | H12: N | L12: Discount45 | M12: -0.45
A13: Deddy Prasetyo | D13: Jakarta | E13: Indonesia | F13: M | G13: 1968-07-26 | H13: SM | L13: Discount50 | M13: -0.5
A14: Dian Siswarini | D14: Jakarta | E14: Indonesia | F14: F | G14: 1968-05-05 | H14: SM | L14: Discount55 | M14: -0.55
A15: Dian Suri Iriani | D15: Jakarta | E15: Indonesia | F15: F | G15: 1979-08-02 | H15: SBL | L15: Discount60 | M15: -0.6
A16: Dobias Iskandar | D16: Jakarta | E16: Indonesia | F16: M | G16: 1965-11-16 | H16: SM | L16: Discount65 | M16: -0.65
A17: Doni Irawan Soenarso | D17: Jakarta | E17: Indonesia | F17: M | G17: 1957-07-11 | H17: SM | L17: Discount70 | M17: -0.7
A18: Dr. Putri Kusuma | D18: Jakarta | E18: Indonesia | F18: F | G18: 1969-01-07 | H18: SM | L18: Discount75 | M18: -0.75
A19: Eileen Patricia Hartono | D19: Jakarta | E19: Indonesia | F19: F | G19: 1973-05-01 | H19: SBL | L19: Discount80 | M19: -0.8
A20: Erlin Diyanto Hong | D20: Jakarta | E20: Indonesia | F20: F | G20: 1979-11-20 | H20: SM | L20: Discount85 | M20: -0.85
A21: Erminda Melayeni | D21: Jakarta | E21: Indonesia | F21: F | G21: 1975-10-25 | H21: SM | L21: Discount90 | M21: -0.9
A22: Escy Soeleiman | D22: Jakarta | E22: Indonesia | F22: F | G22: 1965-12-09 | H22: SBL | L22: Discount95 | M22: -0.95
A23: Evy Celiyanti | D23: Jakarta | E23: Indonesia | F23: F | G23: 1972-03-07 | H23: SM
A24: Fajar Hadi Prabowo | D24: Jakarta | E24: Indonesia | F24: M | G24: 1989-11-14 | H24: N
A25: Herly Julianti | D25: Jakarta | E25: Indonesia | F25: M | G25: 1975-07-01 | H25: SM
A26: Herman Herry Adranacus | D26: Jakarta | E26: Indonesia | F26: M | G26: 1962-11-26 | H26: SM
A27: Isandi Harahap | D27: Jakarta | E27: Indonesia | F27: M | G27: 1958-12-10 | H27: SBL
A28: Ita Yuliati | D28: Jakarta | E28: Indonesia | F28: F | G28: 1969-01-07 | H28: SM
A29: Jessica Cicilia Sadikin | D29: Jakarta | E29: Indonesia | F29: F
A30: Karyoto | D30: Jakarta | E30: Indonesia | F30: M | G30: 1968-10-27 | H30: SBL
A31: Kiki Redjeki | D31: Jakarta | E31: Indonesia | F31: F
A32: Laksmita Artha Widja | D32: Jakarta | E32: Indonesia | F32: F | G32: 1990-03-03 | H32: SM
A33: Lina Iskandar | D33: Jakarta | E33: Indonesia | F33: F | G33: 1970-06-25 | H33: SBL
A34: Listiana Handajani | D34: Jakarta | E34: Indonesia | F34: F | G34: 1954-04-26 | H34: N
A35: Maike Yolanda Fiancisca | D35: Jakarta | E35: Indonesia | F35: F | G35: 1959-02-09 | H35: SM
A36: Martha Dwi Maryani | D36: Jakarta | E36: Indonesia | F36: F | G36: 1969-05-21 | H36: SM
A37: Mochamad Iriawan | D37: Jakarta | E37: Indonesia | F37: M | H37: SM
A38: Muhamad Mardiono | D38: Jakarta | E38: Indonesia | F38: M | G38: 1957-07-11 | H38: SM
A39: Muhamad Mardiono | D39: Jakarta | E39: Indonesia | F39: M | G39: 1957-07-11 | H39: SM
A40: Muljadi Tjahjono | D40: Jakarta | E40: Indonesia | F40: M | G40: 1965-01-22 | H40: SM
A41: Murat Ismael | D41: Jakarta | E41: Indonesia | F41: M | G41: 1961-09-11 | H41: N | I41: 2024-06-26
A42: Nonda Nellyana Djaja | D42: Jakarta | E42: Indonesia | F42: F | G42: 1948-01-12 | H42: SM
A43: Novita Ariya | D43: Jakarta | E43: Indonesia | F43: F | H43: SM
A44: Nyoman Adhi Suryadnyana | D44: Jakarta | E44: Indonesia | F44: M | G44: 1974-10-15 | H44: SBL
A45: Ong Hang Ling | D45: Jakarta | E45: Indonesia | F45: M | G45: 1938-12-12 | H45: N
A46: Peter Pramana | D46: Jakarta | E46: Indonesia | F46: M | G46: 1974-08-10 | H46: N
A47: Pierre Boeschlin | D47: Jakarta | E47: Indonesia | F47: M
A48: Prodjo Handajo Sunjoto | D48: Jakarta | E48: Indonesia | F48: M | G48: 1941-08-17 | H48: SM
A49: Putri Kusuma Mardiono | D49: Jakarta | E49: Indonesia | F49: F | G49: 1969-01-07 | H49: N
A50: Romyus Permana | D50: Jakarta | E50: Indonesia | F50: M | G50: 1978-10-20 | H50: SBL
A51: Salim Lan Jaya Liem | D51: Jakarta | E51: Indonesia | F51: M | G51: 1971-06-01 | H51: SM
A52: Sambodo Purnomo | D52: Jakarta | E52: Indonesia | F52: M | G52: 1973-07-03 | H52: SM
A53: Samuel Bob | D53: Jakarta | E53: Indonesia | F53: M | G53: 1974-01-04 | H53: SM
A54: Samuel Rusli | D54: Jakarta | E54: Indonesia | F54: M | G54: 1968-04-01 | H54: SM
A55: Shanti Tan | D55: Jakarta | E55: Indonesia | F55: F | G55: 1978-09-10 | H55: SBL
A56: Shu Shu | D56: Jakarta | E56: Indonesia | F56: F | H56: SBL
A57: Sri Wahyuswinta | D57: Jakarta | E57: Indonesia | F57: F | G57: 1969-04-04 | H57: SM
A58: Suryadi Jakin | D58: Jakarta | E58: Indonesia | F58: M | G58: 1947-04-04 | H58: SM
A59: Tan Kim Siong | D59: Jakarta | E59: Indonesia | F59: M | G59: 1970-11-09 | H59: SM
A60: Tan Siew Chang | D60: Jakarta | E60: Indonesia | F60: F | G60: 1967-01-13 | H60: SM
A61: Thiha Aung | D61: Jakarta | E61: Indonesia | F61: M | G61: 1974-09-19 | H61: SM
A62: Titi Salim | D62: Jakarta | E62: Indonesia | F62: M | G62: 1971-06-01 | H62: SBL
A63: Tommy Yakin | D63: Jakarta | E63: Indonesia | F63: M | G63: 1988-12-07 | H63: SM
A64: Vino Romano | D64: Jakarta | E64: Indonesia | F64: M | G64: 1988-11-11 | H64: SM
A65: Wahyu Hadiningrat | D65: Jakarta | E65: Indonesia | F65: M | G65: 1974-05-06 | H65: N
A66: Wahyu Widada | D66: Jakarta | E66: Indonesia | F66: M | G66: 1969-09-11 | H66: SM
A67: Wisnu Hermawan | D67: Jakarta | E67: Indonesia | F67: M | G67: 1972-02-16 | H67: SM
A68: Yenni Rista | D68: Jakarta | E68: Indonesia | F68: F | G68: 1958-07-18 | H68: SM
A69: Yenny Wijaya | D69: Jakarta | E69: Indonesia | F69: F | G69: 1973-03-16 | H69: SM
A70: Yuldi Yusman | D70: Jakarta | E70: Indonesia | F70: M | G70: 1975-07-29 | H70: SM
A71: Yulia Gunawan | D71: Jakarta | E71: Indonesia | F71: F | G71: 1983-01-06 | H71: SM
A72: Rizal | D72: Jakarta | E72: Indonesia

Sheet Reference2p
A3: Invoice: 55H-02406-GM11
A4: 04.07.2024
C5: Treatment by | E5: Description | F5: Qty | G5: Price | H5: Amount
C6: Dr. Roland Backhaus
G8: =IFERROR(VLOOKUP(E8,'Services-Produits'!$A$1:$B$2000,2,FALSE),"") ->  | H8: =IFERROR(F8*G8,"") -> 
G9: =IFERROR(VLOOKUP(E9,'Services-Produits'!$A$1:$B$2000,2,FALSE),"") ->  | H9: =IFERROR(F9*G9,"") -> 
G10: =IFERROR(VLOOKUP(E10,'Services-Produits'!$A$1:$B$2000,2,FALSE),"") -> 
G11: =IFERROR(VLOOKUP(E11,'Services-Produits'!$A$1:$B$2000,2,FALSE),"") -> 
G12: =IFERROR(VLOOKUP(E12,'Services-Produits'!$A$1:$B$2000,2,FALSE),"") -> 
G13: =IFERROR(VLOOKUP(E13,'Services-Produits'!$A$1:$B$2000,2,FALSE),"") -> 
A14: Description | B14: Qty | C14: Price | D14: Amount | G14: =IFERROR(VLOOKUP(E14,'Services-Produits'!$A$1:$B$2000,2,FALSE),"") -> 
G15: =IFERROR(VLOOKUP(E15,'Services-Produits'!$A$1:$B$2000,2,FALSE),"") -> 
G16: =IFERROR(VLOOKUP(E16,'Services-Produits'!$A$1:$B$2000,2,FALSE),"") -> 
C17: =IFERROR(VLOOKUP(A17,'Services-Produits'!$A$1:$B$2000,2,FALSE),"") ->  | D17: =IFERROR(B17*C17,"") ->  | G17: =IFERROR(VLOOKUP(E17,'Services-Produits'!$A$1:$B$2000,2,FALSE),"") -> 
C18: =IFERROR(VLOOKUP(A18,'Services-Produits'!$A$1:$B$2000,2,FALSE),"") ->  | D18: =IFERROR(B18*C18,"") ->  | G18: =IFERROR(VLOOKUP(E18,'Services-Produits'!$A$1:$B$2000,2,FALSE),"") -> 
C19: =IFERROR(VLOOKUP(A19,'Services-Produits'!$A$1:$B$2000,2,FALSE),"") ->  | G19: =IFERROR(VLOOKUP(E19,'Services-Produits'!$A$1:$B$2000,2,FALSE),"") -> 
C20: =IFERROR(VLOOKUP(A20,'Services-Produits'!$A$1:$B$2000,2,FALSE),"") ->  | G20: =IFERROR(VLOOKUP(E20,'Services-Produits'!$A$1:$B$2000,2,FALSE),"") ->  | H20: =IFERROR(F20*G20,"") -> 
C21: =IFERROR(VLOOKUP(A21,'Services-Produits'!$A$1:$B$2000,2,FALSE),"") ->  | G21: =IFERROR(VLOOKUP(E21,'Services-Produits'!$A$1:$B$2000,2,FALSE),"") -> 
C22: =IFERROR(VLOOKUP(A22,'Services-Produits'!$A$1:$B$2000,2,FALSE),"") ->  | G22: =IFERROR(VLOOKUP(E22,'Services-Produits'!$A$1:$B$2000,2,FALSE),"") -> 
C23: =IFERROR(VLOOKUP(A23,'Services-Produits'!$A$1:$B$2000,2,FALSE),"") ->  | G23: =IFERROR(VLOOKUP(E23,'Services-Produits'!$A$1:$B$2000,2,FALSE),"") -> 
C24: =IFERROR(VLOOKUP(A24,'Services-Produits'!$A$1:$B$2000,2,FALSE),"") ->  | G24: =IFERROR(VLOOKUP(E24,'Services-Produits'!$A$1:$B$2000,2,FALSE),"") -> 
C25: =IFERROR(VLOOKUP(A25,'Services-Produits'!$A$1:$B$2000,2,FALSE),"") ->  | G25: =IFERROR(VLOOKUP(E25,'Services-Produits'!$A$1:$B$2000,2,FALSE),"") -> 
C26: =IFERROR(VLOOKUP(A26,'Services-Produits'!$A$1:$B$2000,2,FALSE),"") ->  | G26: =IFERROR(VLOOKUP(E26,'Services-Produits'!$A$1:$B$2000,2,FALSE),"") -> 
C27: =IFERROR(VLOOKUP(A27,'Services-Produits'!$A$1:$B$2000,2,FALSE),"") ->  | E27: Subtotal-2 in CHF: | H27: =SUM(H8:H26) -> 0
C28: =IFERROR(VLOOKUP(A28,'Services-Produits'!$A$1:$B$2000,2,FALSE),"") ->  | G28: =IFERROR(VLOOKUP(E28,'Services-Produits'!$A$1:$B$149,2,FALSE),"") -> 
C29: =IFERROR(VLOOKUP(A29,'Services-Produits'!$A$1:$B$2000,2,FALSE),"") ->  | E29: Total in CHF | H29: =D41+H27 -> 0
C30: =IFERROR(VLOOKUP(A30,'Services-Produits'!$A$1:$B$2000,2,FALSE),"") -> 
C31: =IFERROR(VLOOKUP(A31,'Services-Produits'!$A$1:$B$2000,2,FALSE),"") ->  | E31: Thank you very much for your trust!
C32: =IFERROR(VLOOKUP(A32,'Services-Produits'!$A$1:$B$2000,2,FALSE),"") -> 
C33: =IFERROR(VLOOKUP(A33,'Services-Produits'!$A$1:$B$2000,2,FALSE),"") -> 
C34: =IFERROR(VLOOKUP(A34,'Services-Produits'!$A$1:$B$2000,2,FALSE),"") -> 
C35: =IFERROR(VLOOKUP(A35,'Services-Produits'!$A$1:$B$2000,2,FALSE),"") -> 
C36: =IFERROR(VLOOKUP(A36,'Services-Produits'!$A$1:$B$2000,2,FALSE),"") -> 
C37: =IFERROR(VLOOKUP(A37,'Services-Produits'!$A$1:$B$2000,2,FALSE),"") -> 
C38: =IFERROR(VLOOKUP(A38,'Services-Produits'!$A$1:$B$2000,2,FALSE),"") -> 
C39: =IFERROR(VLOOKUP(A39,'Services-Produits'!$A$1:$B$2000,2,FALSE),"") -> 
C40: =IFERROR(VLOOKUP(A40,'Services-Produits'!$A$1:$B$2000,2,FALSE),"") -> 
A41: Subtotal-1 in CHF: | D41: =SUM(D17:D39) -> 0
